Cogmind - Beta 15 @@@ ROGUE MODE // 2025.05.30 @ 00:40:54 Player: alice_fexa Result: Escaped! Performance ------------- Evolutions (9) 4500 Regions Visited (27) 5400 Robots Destroyed (401) 2005 Value Destroyed (24559) 24559 Prototype IDs (173) 3460 Alien Tech Used (5) 1000 Bonus (19451) 19451 TOTAL SCORE: 60375 Bonus ------- High Alert Combat Kills 5786 Follower Combat Kills 80 Met Data Miner 300 Met Warlord at Base 500 MAIN.C Attacked Warlord 500 Warlord Defense Kills 3578 Met Warlord at Research 2000 Invited to Help at Command 2000 Scanned by Researcher 500 Destroyed MAIN.C Guards 500 Met Warlord at Command 2000 Win 3000 Friendly Fire -1293 Cogmind --------- Core Integrity 994/1600 Matter 295/300 Energy 467/470 System Corruption 8% Temperature Warm (100) Movement Treading (77) Location To Epsilon Eridani Parts ------- > --- POWER (2) -------- Quantum Reactor Concept Zero-point Core > --- PROPULSION (6) --- Biometal Heavy Treads Treaded Armored-Biometal Exoskeleton > --- UTILITY (14) ----- Experimental Cooling System Advanced Coolant Injector Advanced Coolant Injector Concept Antigrav Storage Unit Experimental Optical Array Concept Weapon Articulator Quantum Capacitor Concept Cloak Mesh Layered Medium Armor Plating Layered Medium Armor Plating Layered Medium Armor Plating Improved Force Field Long-range Tractor Beam > --- WEAPON (4) ------- Heavy Neutron Cannon Concept Plasma Driver Hardcell Cannon Hardcell Cannon > --- INVENTORY (25) --- Quantum Reactor Quantum Reactor Quantum Reactor Improved Quantum Reactor Zero-point Reactor Zero-point Reactor Advanced Heavy Siege Treads Experimental Heat Sink Concept Chromion Battery (800) Concept Chromion Battery (800) Concept NT7 Matterbank (750) Concept NT7 Matterbank (750) Advanced Sensor Array Advanced Sensor Array Advanced Terrain Scan Processor Concept Weapon Articulator Advanced Transmission Jammer Force Field Advanced Component Analysis Suite Crosscalibrator Subatomic Replicator Vortex Shotgun (50) Enhanced Hardcell Cannon Ragnarok Missile Launcher Peak State ------------ > --- POWER ------------ ZP-Graviton Core > --- PROPULSION ------- Treaded Armored-Biometal Exoskeleton > --- UTILITY ---------- Armored Scrap Engine Concept Antigrav Storage Unit Experimental Optical Array Concept Weapon Articulator Experimental Core Analyzer Advanced Weapon Cycler Advanced Transmission Jammer Advanced Phase Shifter Centrium Medium Armor Plating Experimental Hardlight Generator Concept Matter Streamer > --- WEAPON ----------- Prc. Entropic Rail Construct/C Nanosword > --- INVENTORY -------- Concept Zero-point Core Advanced Coolant Injector Experimental Coolant Injector Concept Chromion Battery Concept Chromion Battery Concept NT7 Matterbank Concept NT7 Matterbank Advanced Sensor Array Concept Weapon Articulator Advanced Weapon Cycler Advanced Transmission Jammer Advanced Phase Shifter Advanced Phase Shifter Concept Cloak Mesh Concept Antimissile System Advanced Component Analysis Suite Crosscalibrator Transdimensional Reconstructor Transdimensional Reconstructor Subatomic Replicator Warp Gun Vortex Shotgun Vortex Shotgun Vortex Shotgun Ragnarok Missile Launcher [Rating: 245] Favorites ----------- Power Constructs Engine Ion Engine Power Core Constructs Reactor Quantum Reactor Propulsion Constructs Treads Constructs Leg Myomer Leg Wheel Compact Wheel Hover Unit Improved Antigrav System Utility High-capacity Storage Unit Device Armored Scrap Engine Storage High-capacity Storage Unit Processor Advanced Signal Interpreter Hackware Experimental Hacking Suite Protection Layered Medium Armor Plating Weapon Constructs Energy Gun Improved Medium Laser Energy Cannon Constructs Ballistic Gun Assault Rifle Ballistic Cannon Hardcell Cannon Launcher Long-range Missile Launcher Special Weapon Advanced Remote Datajack Impact Weapon Power Maul Slashing Weapon Nanosword Piercing Weapon Lance Build | -11 -10 -10 -8 -8 -8 -6 -6 -6 -6 -5 -5 -5 -5 -5 -4 -4 -4 -4 -4 -3 -3 -3 -2 -2 -2 -1 -1 ------- Run | Yrd Mat Sub Mat Sto Rec Fac Low Low Dat Pro Fac Upp Upp Zhi Pro Fac Upp Upp War Pro Res Qua Res Tes Frg Acc Com Slots Evolved 18 | . . . 4 . . 4 . . . . 2 . . . . 2 . . . . 2 . 2 . . 2 . Power 1 | . . . . . . . . . . . 1 . . . . . . . . . . . . . . . . Propulsion 4 | . . . 2 . . 1 . . . . . . . . . 1 . . . . . . . . . . . Utility 12 | . . . 2 . . 2 . . . . 1 . . . . 1 . . . . 2 . 2 . . 2 . Weapon 1 | . . . . . . 1 . . . . . . . . . . . . . . . . . . . . . Parts Attached 213 | 8 8 . 31 4 9 13 . . . 3 14 2 . 2 3 7 . 2 11 2 8 17 9 8 18 14 20 Power 20 | 2 2 . 5 1 . . . . . 1 4 . . . . . . . . . . . . . 1 1 3 Engine 10 | 2 2 . 5 1 . . . . . . . . . . . . . . . . . . . . . . . Core 6 | . . . . . . . . . . 1 4 . . . . . . . . . . . . . 1 . . Reactor 4 | . . . . . . . . . . . . . . . . . . . . . . . . . . 1 3 Propulsion 26 | 2 2 . 9 1 5 . . . . . . . . . . 2 . . 2 . 1 . . . . 1 1 Treads 19 | 2 1 . 9 1 4 . . . . . . . . . . . . . . . . . . . . 1 1 Leg 2 | . . . . . . . . . . . . . . . . . . . 2 . . . . . . . . Wheel 4 | . 1 . . . 1 . . . . . . . . . . 2 . . . . . . . . . . . Hover 1 | . . . . . . . . . . . . . . . . . . . . . 1 . . . . . . Flight . | . . . . . . . . . . . . . . . . . . . . . . . . . . . . Utility 119 | 1 3 . 9 . 2 11 . . . 1 6 2 . 2 3 4 . 1 4 1 5 12 7 5 16 10 14 Device 74 | . 1 . 5 . 2 5 . . . . 4 1 . . 2 2 . . 2 1 3 9 4 4 11 7 11 Storage 10 | 1 2 . . . . 2 . . . . 1 . . 1 . . . . . . . 2 . . 1 . . Processor 16 | . . . 1 . . 2 . . . . 1 . . . . 1 . . 1 . 2 . 3 1 2 2 . Hackware 2 | . . . . . . . . . . . . . . . . 1 . . . . . . . . . 1 . Protection 17 | . . . 3 . . 2 . . . 1 . 1 . 1 1 . . 1 1 . . 1 . . 2 . 3 Artifact . | . . . . . . . . . . . . . . . . . . . . . . . . . . . . Weapon 48 | 3 1 . 8 2 2 2 . . . 1 4 . . . . 1 . 1 5 1 2 5 2 3 1 2 2 Energy Gun 12 | 1 . . 6 1 1 . . . . . . . . . . . . . 1 . . . . 2 . . . Energy Cannon 5 | . 1 . . . . . . . . . . . . . . . . 1 1 . . . . . 1 1 . Ballistic Gun 9 | 2 . . . 1 . . . . . . 1 . . . . . . . 2 . 1 1 . . . 1 . Ballistic Cannon 7 | . . . . . . . . . . . . . . . . . . . . . . 3 2 . . . 2 Launcher 7 | . . . 1 . 1 1 . . . 1 . . . . . 1 . . . 1 . . . 1 . . . Special Weapon 1 | . . . . . . . . . . . . . . . . . . . . . . 1 . . . . . Impact Weapon 2 | . . . . . . 1 . . . . 1 . . . . . . . . . . . . . . . . Slashing Weapon 2 | . . . 1 . . . . . . . 1 . . . . . . . . . . . . . . . . Piercing Weapon 3 | . . . . . . . . . . . 1 . . . . . . . 1 . 1 . . . . . . Special Melee Weapon . | . . . . . . . . . . . . . . . . . . . . . . . . . . . . Unidentified Prototypes 46 | . . . 4 3 1 1 . . . . 4 . . 3 . 1 . . 8 2 . 7 4 2 3 . 3 Parts Lost 44 | . . . 5 . 2 . . . . 1 1 . . . 1 . . . 1 . . 2 1 . 21 8 1 Power 5 | . . . 1 . . . . . . 1 . . . . . . . . . . . . . . 2 . 1 Propulsion 5 | . . . 1 . 1 . . . . . . . . . . . . . 1 . . . . . 1 1 . Utility 23 | . . . 3 . . . . . . . . . . . 1 . . . . . . 1 . . 13 5 . Weapon 11 | . . . . . 1 . . . . . 1 . . . . . . . . . . 1 1 . 5 2 . Highest Loss Streak 17 | . . . 3 . 1 . . . . 1 1 . . . 1 . . . 1 . . 1 1 . 17 5 1 To Critical Strikes 2 | . . . . . . . . . . . . . . . . . . . . . . . . . 2 . . Average Backups 19 | 3 10 19 19 19 19 19 20 20 20 19 19 19 20 20 19 19 20 20 20 20 19 19 19 20 22 16 23 Power . | . 1 4 2 2 2 1 1 1 1 . . . 1 1 1 1 1 1 . . . . . . . . 4 Propulsion . | 1 1 3 1 2 . . . . . . . . . . . . . . . . . . . . . . 1 Utility 10 | . 2 6 7 7 8 9 11 11 11 11 13 13 13 13 12 12 13 13 12 13 11 11 10 10 12 11 13 Weapon 6 | . 4 6 7 8 8 8 8 8 8 8 5 6 6 5 5 5 5 5 5 6 6 5 6 7 6 2 2 Tool/Special . | . . . . . . . . . . . . . . . . . . . . . . . . . . . . Unused Backups 108 | . 6 . 16 2 1 9 1 . . . 8 . . 3 1 4 . . 4 . 7 5 7 3 7 . 24 Power 20 | . 2 . 6 . . 3 . . . . . . . 1 . . . . 1 . . . . . . . 7 Propulsion 8 | . 2 . 1 . 1 . . . . . . . . . . . . . . . . . 2 . . . 2 Utility 43 | . 1 . 3 . . 2 1 . . . 3 . . 1 1 2 . . 1 . 4 3 4 2 3 . 12 Weapon 36 | . 1 . 6 2 . 4 . . . . 5 . . 1 . 2 . . 2 . 3 2 1 1 4 . 2 Tool/Special 1 | . . . . . . . . . . . . . . . . . . . . . . . . . . . 1 Average Slot Usage (%) 67 | . 97 100 97 98 80 59 60 60 60 59 62 58 58 57 57 63 67 66 61 55 60 63 62 62 61 61 78 Engine 2 | . 14 14 9 9 8 3 . . . . 4 . . . . . . . . . . . . . . . . Core 1 | . . . . . . 2 6 6 6 5 4 5 5 5 5 5 3 . . . . . . . 1 3 3 Reactor 1 | . . . . . . . . . . . . . . . . . 1 5 5 5 4 3 4 4 2 2 2 Treads 7 | . 25 14 33 36 19 1 . . . . 3 . . . . . 1 4 5 5 4 3 4 4 4 6 7 Wheel 1 | . 2 14 . . 3 . . . . . . . . . . 7 12 8 4 . . . . . . . . Hover 1 | . . . . . . 2 6 6 6 6 1 5 5 5 5 3 . . . . . . . . . . . Device 16 | . 11 14 17 18 13 13 13 13 13 12 13 12 11 10 14 17 15 14 14 15 17 17 19 19 22 22 29 Storage 5 | . 14 14 9 9 9 6 6 6 6 6 5 5 5 5 5 5 5 5 5 5 4 4 4 4 4 3 3 Processor 8 | . . . . . . 5 6 6 6 6 10 11 11 11 6 7 10 10 10 10 13 13 16 16 13 8 3 Hackware 1 | . . . . . . . . . . . . . . . . 4 5 5 5 5 4 4 4 4 1 2 2 Protection 3 | . . . 8 9 9 5 6 6 6 6 2 3 5 4 5 . . . . . . . . . 2 . 9 Energy Gun 1 | . 1 . 16 15 10 . . . . . . . . . . . . . . . . . . . . 1 . Energy Cannon 1 | . 10 14 1 . . 2 . . . . 1 . . . . . . . . . . . 3 4 2 2 6 Ballistic Gun 1 | . 16 14 . . 1 . . . . . . . . . . . . . . . 2 3 . . . 1 . Ballistic Cannon 2 | . . . . . . 3 6 6 6 6 3 5 5 5 5 5 5 5 5 5 4 5 1 . 1 . 5 Slashing Weapon 2 | . . . . . 4 4 . . . . 1 2 . . . 4 5 4 4 4 4 3 3 3 3 . . Peak Build Rating 245 | 6 9 8 26 27 48 75 75 75 75 76 109 109 105 108 110 127 127 126 136 131 151 184 206 207 245 220 239 Average Rating 121 | 4 7 8 21 25 34 68 75 75 75 75 96 106 105 105 107 124 125 123 127 126 142 163 200 202 216 181 222 On Entrance 95 | . 6 8 8 25 26 44 75 75 75 75 76 109 105 105 106 109 126 125 126 127 126 150 182 202 197 124 159 Naked Turns . | . . . . . . . . . . . . . . . . . . . . . . . . . . . . Heaviest Build 160 | 13 51 51 63 60 59 74 74 74 74 86 81 81 81 81 83 84 71 86 86 89 87 104 105 107 142 103 160 Greatest Support 313 | 40 40 10 80 80 80 126 94 94 94 94 154 127 127 127 127 127 114 114 88 88 88 251 313 313 313 260 236 Greatest Overweight (x) 5 | . 5 5 5 . 5 1 . . . . 1 . . . . 4 . . . 1 . 1 . . . . . Average Overweight (x) . | . . 5 . . . . . . . . . . . . . . . . . . . . . . . . . Largest Inventory Capacity 25 | 8 20 20 20 20 20 20 20 20 20 20 20 20 20 20 20 20 20 20 20 20 20 20 20 20 25 25 25 Average Capacity 20 | 6 12 20 20 20 20 20 20 20 20 20 20 20 20 20 20 20 20 20 20 20 20 20 20 20 22 25 25 Most Carried 25 | 4 20 19 20 20 20 20 20 20 20 20 20 20 20 20 20 20 20 20 20 20 20 20 20 20 25 20 25 Average Carried 19 | 3 10 19 19 19 19 19 20 20 20 19 19 19 20 19 19 19 20 20 19 20 19 19 19 19 22 16 24 Final Capacity 25 | 8 20 20 20 20 20 20 20 20 20 20 20 20 20 20 20 20 20 20 20 20 20 20 20 20 25 25 25 Final Carried 25 | 4 19 19 19 20 20 20 20 20 20 19 20 20 20 20 20 20 20 20 20 20 20 20 20 20 20 19 25 Scrap Engine Consumption 210 | . . . . . 34 25 2 1 . . 31 3 . 7 . 16 5 5 17 1 . 15 24 2 22 . . Constructs Created 5 | . . . . . 3 . . . . . 1 . . . . . . . . . . . . . 1 . . Constructs Modified 91 | . . . . . 5 14 . . . . 16 2 . . 5 6 3 4 . . . 15 12 . 9 . . Class Distribution -------------------- 72% | Construct 12% | Scavenger-Mutant 6% | Mutant Dominant Class ---------------- Mutant | -10/Materials Scavenger-Mutant | -10/Subcaves Scavenger-Mutant | -8/Materials Scavenger-Mutant | -8/Storage Scavenger-Mutant | -8/Recycling Construct | -6/Factory Construct | -6/Lower Caves Construct | -6/Lower Caves Construct | -6/Data Miner Construct | -5/Proximity Caves Construct | -5/Factory Construct | -5/Upper Caves Construct | -5/Upper Caves Construct | -5/Zhirov Construct | -4/Proximity Caves Construct | -4/Factory Construct | -4/Upper Caves Construct | -4/Upper Caves Construct | -4/Warlord Construct | -3/Proximity Caves Construct | -3/Research Construct | -3/Quarantine Construct | -2/Research Construct | -2/Testing Construct | -2/Protoforge Scavenger-Skirmisher | -1/Access Infiltrator-Tank | -1/Command Resources | -11 -10 -10 -8 -8 -8 -6 -6 -6 -6 -5 -5 -5 -5 -5 -4 -4 -4 -4 -4 -3 -3 -3 -2 -2 -2 -1 -1 ----------- Run | Yrd Mat Sub Mat Sto Rec Fac Low Low Dat Pro Fac Upp Upp Zhi Pro Fac Upp Upp War Pro Res Qua Res Tes Frg Acc Com Matter Collected 14053 | 242 309 . 665 80 249 319 70 . . 15 464 94 . 60 49 254 137 186 999 514 155 1712 1087 675 4651 281 786 Remotely 1604 | . . . . . . . . . . . . . . . . . . . . . . . 45 . 865 . 694 Salvage Created 20879 | . 555 . 1640 295 258 583 130 . . 54 1814 94 . 130 85 717 253 299 1932 532 349 1432 1203 706 6120 614 1084 Parts 1045 | . 40 . 86 12 11 36 3 . . 5 90 6 . 7 2 63 15 16 73 26 15 128 38 23 299 25 26 Haulers Intercepted 13 | . 2 . 5 . . 1 . . . . 2 . . . . . . . . . 2 . . . . 1 . Recyclers Shooed 4 | . . . . . . . . . . . 2 . . . . 1 . . . . . . . . . 1 . Parts Field Recycled . | . . . . . . . . . . . . . . . . . . . . . . . . . . . . Retrieved Matter . | . . . . . . . . . . . . . . . . . . . . . . . . . . . . Parts Self-Destructed 67 | . . 4 . . . . 4 5 . 4 . 4 . 6 1 . 4 14 . 21 . . . . . . . Prevented 7 | . . . . . . . . . . . . . 2 . 2 . . . . 3 . . . . . . . Kills | -11 -10 -10 -8 -8 -8 -6 -6 -6 -6 -5 -5 -5 -5 -5 -4 -4 -4 -4 -4 -3 -3 -3 -2 -2 -2 -1 -1 ------- Run | Yrd Mat Sub Mat Sto Rec Fac Low Low Dat Pro Fac Upp Upp Zhi Pro Fac Upp Upp War Pro Res Qua Res Tes Frg Acc Com Combat Hostiles Destroyed 314 | . 13 . 20 4 7 6 1 . . 5 18 4 . . 1 9 2 8 25 10 . 20 15 13 103 11 19 Melee 3 | . . . . . . . . . . . 3 . . . . . . . . . . . . . . . . Guns 33 | . 8 . 12 4 5 . . . . . . . . . . . . . . . . 3 . . . 1 . Cannons 207 | . 4 . 1 . . 6 1 . . . 11 1 . . 1 5 2 4 25 7 . 17 15 8 86 2 11 AOE 54 | . . . 4 . 2 . . . . 5 3 3 . . . 4 . 4 . 3 . . . 4 15 7 . Classes Destroyed 34 | . 6 . 7 . 1 1 . . . . 1 . . . . . 1 2 5 . . 2 2 . 5 . 1 Worker 11 | . 1 . 3 1 . . . . . . 2 . . . . 2 . . . . . . . 1 1 . . Builder 9 | . . . 1 . . . . . . . 2 . . . . 3 . . . . 1 1 . . . 1 . Tunneler 1 | . . . 1 . . . . . . . . . . . . . . . . . . . . . . . . Hauler 13 | . 2 . 5 . . 1 . . . . 2 . . . . . . . . . 2 . . . . 1 . Recycler 12 | . 1 . 3 1 . 1 . . . . 4 . . . . 1 . . . . . . . . . 1 . Carrier 1 | . . . . . . . . . . . . . . . . . . . . . . . . . 1 . . Mechanic 9 | . . . 2 . . . . . . . 1 . . . . . . . 1 . . . . 1 3 . 1 Operator 4 | . . . 1 . . 1 . . . . . . . . . . . . . . 1 . . . 1 . . Drone 10 | . . . . . . . . . . . . . . . . . . 1 . . . 4 . . 5 . . Watcher 22 | . 3 . 2 . . 2 . . . . 1 . . . . 2 . . . . 2 3 . 1 4 . 2 Swarmer 56 | . 9 . 4 . . 1 . . . 5 4 4 . . . 4 1 4 . 5 . 2 . 4 . 9 . Saboteur 4 | . . . . . . . . . . . 1 . . . . . . . . . . . . . 2 . 1 Grunt 58 | . 4 . 8 . . . 1 . . . . . . . 1 . . . 13 . . . 4 . 24 1 2 Brawler 7 | . . . . . . . . . . . . . . . . . . 2 2 . . . . . 3 . . Duelist 9 | . . . 2 . . . . . . . . . . . . . . . 1 . . . . . 4 . 2 Protector 6 | . . . . . . . . . . . . . . . . . . . 1 2 . . . . 3 . . Researcher 7 | . . . . . . . . . . . . . . . . . . . . . . 1 . . 6 . . Sentry 27 | . . . 3 2 1 1 . . . . . . . . . 1 1 1 . 1 . 1 2 . 13 . . Demolisher 4 | . . . . . . . . . . . . . . . . . . . 1 2 . . 1 . . . . Specialist 1 | . . . . . . . . . . . . . . . . . . . 1 . . . . . . . . Hunter 26 | . . . 3 2 . . . . . . 4 . . . . . . . 1 . . . 3 5 6 . 2 Programmer 49 | . . . . . . 4 . . . . 9 . . . . 4 . . 4 . . 4 . 2 19 . 3 Heavy 1 | . . . . . . . . . . . . . . . . . . . . . . . . . . . 1 Q-Series 5 | . . . . . . . . . . . . . . . . . . . . . . 1 . 1 2 1 . Behemoth 3 | . . . . . . . . . . . . . . . . . . . . . . . 1 . . . 2 Quarantine Guard 8 | . . . . . . . . . . . . . . . . . . . . . . 8 . . . . . M Guard 1 | . . . . . . . . . . . . . . . . . . . . . . . . . . . 1 Hotshot 4 | . . . . . . . . . . . . . . . . . . . . . . . . . 4 . . Decapitator 9 | . . . . . . . . . . . . . . . . . . . . . . . . . 9 . . Immortal 2 | . . . . . . . . . . . . . . . . . . . . . . . . . 2 . . Combat Programmer 2 | . . . . . . . . . . . . . . . . . . . . . . . . . . . 2 Striker 4 | . . . . . . . . . . . . . . . . . . . . . . . 3 . 1 . . Executioner 4 | . . . . . . . . . . . . . . . . . . . 1 . . . 1 . . . 2 Alpha 7 3 | . . . . . . . . . . . . . . . . . . . . . . . . . 2 . 1 V-Series 4 | . . . . . . . . . . . . . . . . . . . . . . . . . 4 . . Protovariant H 1 | . . . . . . . . . . . . . . . . . . . . . . . . 1 . . . Subdweller 6 | . . . . . 6 . . . . . . . . . . . . . . . . . . . . . . Decomposer 1 | . . . . . . . . . . . . 1 . . . . . . . . . . . . . . . Samaritan 2 | . . . . . . . . . . . . . . . . . 2 . . . . . . . . . . Tinkerer 1 | . . . . . . . . . . . . . . . . . . . . . . . . . 1 . . Butcher 1 | . . . . . . . . . . . . . . . . . . . . . . . . . . . 1 Wizard 1 | . . . . . . . . . . . . . . . . . . . . . . . 1 . . . . Mutant 1 | . . . . . . . . . . . . . . . . . . . 1 . . . . . . . . Best Kill Streak 21 | . 6 . 4 2 2 2 1 . . 5 6 4 . . 1 7 1 4 7 5 2 3 3 6 21 4 3 Combat Bots Only 18 | . 6 . 4 1 2 1 1 . . 5 4 4 . . 1 6 1 4 6 5 . 2 3 6 18 4 3 Max Kills in Single Turn 5 | . 2 . 2 1 1 1 1 . . 3 2 3 . . 1 3 1 3 2 3 1 1 1 2 5 4 1 Gunslinging . | . . . . . . . . . . . . . . . . . . . . . . . . . . . . Exploded 5 | . . . 2 . 1 . . . . 3 2 3 . . . 2 . 3 . 3 . . . 2 5 4 . Melee 1 | . . . . . . . . . . . 1 . . . . . . . . . . . . . . . . Uniques/NPCs Destroyed . | . . . . . . . . . . . . . . . . . . . . . . . . . . . . Combat | -11 -10 -10 -8 -8 -8 -6 -6 -6 -6 -5 -5 -5 -5 -5 -4 -4 -4 -4 -4 -3 -3 -3 -2 -2 -2 -1 -1 -------- Run | Yrd Mat Sub Mat Sto Rec Fac Low Low Dat Pro Fac Upp Upp Zhi Pro Fac Upp Upp War Pro Res Qua Res Tes Frg Acc Com Hostile Shots Fired 1615 | . 48 . 104 32 36 82 5 . . 27 167 6 1 . 5 41 6 8 7 17 . 127 41 97 647 66 45 Missed 564 | . 13 . 33 10 11 30 2 . . 8 57 2 1 . 3 8 1 2 5 5 . 39 17 39 248 20 10 Intercepted 14 | . . . . . . . . . . . . . . . . . . . . . . . . . . . 14 Hits 1051 | . 35 . 71 22 25 52 3 . . 19 110 4 . . 2 33 5 6 2 12 . 88 24 58 399 46 35 Melee 30 | . . . 5 . . . . . . . . . . . . . . . . . . . . . 25 . . Projectile 1021 | . 35 . 66 22 25 52 3 . . 19 110 4 . . 2 33 5 6 2 12 . 88 24 58 374 46 35 AOE 6 | . . . . . . . . . . . . . . . . . . . . 1 . . . 1 1 . 3 Critical Strikes 73 | . . . 6 1 1 2 . . . . 7 . . . . 3 1 . . . . 3 . 4 43 1 1 Damage Taken 22103 | . 354 . 1200 348 523 541 57 . . 338 2098 52 . . 303 654 116 110 73 300 149 2336 204 716 8917 2049 665 Core 2542 | . 50 . 138 18 48 12 . . . 34 231 13 . . . 74 . . . . . 227 36 92 1043 471 55 Absorbed by Shields 4082 | . . . . . . . . . . . . . . . . . . . . . . 625 211 721 2022 . 503 Ignored by Resistances 664 | . . . . . . . . . . . . . . . . . . . . . . . . . 414 147 103 Regen/Repaired (Parts) 6570 | . . . . 83 5 358 . . . . 1058 320 . 200 397 182 380 127 3 . . 679 1026 . 1752 . . Core Remaining (%) 73 | 100 . 80 . . 62 . . . . 94 . . . . 75 . . . . 93 . 82 . . 17 . 62 Volleys Fired 1175 | . 38 . 107 16 31 56 12 7 . 15 64 8 . 4 7 32 12 15 81 45 5 99 52 34 277 72 86 Largest 4 | . 2 . 2 2 2 1 1 1 . 1 1 1 . 1 1 1 1 1 1 1 1 3 1 1 2 1 4 Hottest 360 | . 80 . 112 112 112 98 98 98 . 98 64 64 . 64 64 64 64 64 64 64 64 160 150 117 140 140 360 Shots Fired 1467 | . 75 1 206 33 56 56 12 7 . 15 63 8 . 4 7 32 12 15 81 45 5 143 52 34 273 73 159 Gun 370 | . 56 1 173 33 51 . . . . . . . . . . . . . . . . 29 . . . 27 . Cannon 1059 | . 19 . 25 . . 56 12 7 . 12 59 7 . 4 7 30 12 13 81 44 5 114 52 31 266 44 159 Launcher 38 | . . . 8 . 5 . . . . 3 4 1 . . . 2 . 2 . 1 . . . 3 7 2 . Special . | . . . . . . . . . . . . . . . . . . . . . . . . . . . . Kinetic 721 | . 55 1 . . . 56 12 7 . 12 51 7 . 4 7 30 12 13 81 44 5 143 18 . 105 . 58 Thermal 630 | . 20 . 198 33 51 . . . . . . . . . . . . . . . . . 34 31 91 71 101 Explosive 26 | . . . . . 5 . . . . 3 . 1 . . . 2 . 2 . 1 . . . 3 7 2 . Electromagnetic 20 | . . . 8 . . . . . . . 12 . . . . . . . . . . . . . . . . Entropic 70 | . . . . . . . . . . . . . . . . . . . . . . . . . 70 . . Robot Hit Streak 49 | . 8 . 19 9 29 18 4 . . 5 7 3 . 13 3 12 10 18 8 4 4 16 8 6 32 43 49 Robot Miss Streak 7 | . 4 . 7 3 1 4 3 . . 2 3 2 . . 3 6 1 1 3 3 . 3 5 1 5 . 3 Penetration Max 1 | . . . . . . . . . . . . . . . . 1 . . 1 1 . 1 . . 1 1 1 Secondary Targets 2 | . . . 1 . 1 . . . . . . . . . . . . . . . . . . . . . . Max Gunslinging Chain 1 | . . . 1 . 1 . . . . . . . . . . . . . . . . . . . . . . Capacitor 27 | . . . . . . . . . . . . . . . . . . . . . . . . . . . 27 Shots Hit Robots 1007 | . 35 . 137 22 49 24 7 . . 7 48 2 . 4 2 27 7 10 56 25 12 104 34 24 214 35 122 Core Hits 493 | . 22 . 62 9 12 10 1 . . 6 20 5 . 2 2 24 5 7 27 15 5 42 17 13 138 15 34 Critical Kills 17 | . 2 . . . . . . . . . 1 . . . . . . . . . . . . . 3 3 8 Critical Parts Destroyed 14 | . . . . . . . 1 . . . 6 . . . 1 . . . . . . . . . 4 2 . Critical Strikes 93 | . 2 . 12 1 7 . 1 . . 1 10 . . 1 1 . . 1 9 2 1 10 1 . 14 5 14 Burn 22 | . . . 12 1 7 . . . . . . . . . . . . . . . . . . . 2 . . Meltdown 10 | . 1 . . . . . . . . . . . . . . . . . . . . . . . . 1 8 Destroy 26 | . 1 . . . . . . . . 1 6 . . 1 1 . . . . . . . . . 12 4 . Blast 30 | . . . . . . . . . . . . . . . . . . 1 9 2 1 10 1 . . . 6 Smash 2 | . . . . . . . 1 . . . 1 . . . . . . . . . . . . . . . . Impale 3 | . . . . . . . . . . . 3 . . . . . . . . . . . . . . . . Melee Attacks 202 | . . . 1 6 1 17 3 3 . . 45 . . . . 22 4 1 6 3 20 16 1 14 39 . . Impact 32 | . . . . . . 4 3 3 . . 22 . . . . . . . . . . . . . . . . Slashing 159 | . . . 1 6 1 13 . . . . 12 . . . . 22 4 1 6 3 20 16 1 14 39 . . Piercing 11 | . . . . . . . . . . . 11 . . . . . . . . . . . . . . . . Sneak Attacks 23 | . . . . 1 . 3 . . . . 6 . . . . 3 2 . . . 3 1 . 2 2 . . Combat Hostiles 1 | . . . . . . . . . . . 1 . . . . . . . . . . . . . . . . Follow-up Attacks . | . . . . . . . . . . . . . . . . . . . . . . . . . . . . Damage Inflicted 90683 | . 531 . 2484 437 1096 1639 446 . . 797 3807 347 . 365 153 2352 598 1180 4850 2319 974 6558 4958 4746 39935 3182 6929 Guns 4452 | . 279 . 1933 377 788 . . . . . . . . . . . . . . . . 498 . . . 577 . Cannons 72092 | . 252 . 280 . . 1419 354 . . 374 2582 57 . 365 153 1497 374 666 4850 1910 148 5797 4958 3509 34188 1610 6749 Explosions 10494 | . . . 265 . 308 . . . . 423 360 290 . . . 479 . 514 . 409 . . . 929 5355 982 180 Melee 3626 | . . . . 60 . 220 92 . . . 865 . . . . 376 224 . . . 826 263 . 308 392 . . Ramming 19 | . . . 6 . . . . . . . . . . . . . . . . . . . . . . 13 . Kinetic 35918 | . 266 . . . . 1419 354 . . 374 2336 57 . 365 153 1497 374 666 4850 1910 148 6295 833 . 12522 . 1499 Thermal 29756 | . 265 . 2276 377 788 . . . . . . . . . . . . . . . . . 4125 3509 10799 2187 5430 Explosive 9831 | . . . . . 308 . . . . 423 142 290 . . . 479 . 514 . 409 . . . 929 5355 982 . Electromagnetic 666 | . . . 202 . . . . . . . 464 . . . . . . . . . . . . . . . . Impact 399 | . . . . . . . 92 . . . 307 . . . . . . . . . . . . . . . . Slashing 2821 | . . . . 60 . 220 . . . . 152 . . . . 376 224 . . . 826 263 . 308 392 . . Piercing 406 | . . . . . . . . . . . 406 . . . . . . . . . . . . . . . . Entropic 10867 | . . . . . . . . . . . . . . . . . . . . . . . . . 10867 . . Highest Corruption 55 | . 2 2 3 3 3 4 . . . . 6 6 . . 4 6 6 6 6 . 1 11 . 2 55 7 8 Average Corruption 6 | . 2 2 3 3 3 3 . . . . 3 4 . . 4 3 6 6 6 . 1 8 . 1 13 5 7 Corruption Purged 19 | . . . . . . 4 . . . . . 6 . . . . . . . . . . . . 9 . . Corruption Blocked . | . . . . . . . . . . . . . . . . . . . . . . . . . . . . Effects 432 | . 11 2 27 2 41 10 . . . . 23 7 . . 6 12 15 15 1 . . 67 . 12 115 13 53 Message Errors 120 | . 1 . 9 1 14 2 . . . . 6 . . . 2 1 6 4 . . . 14 . 5 35 3 17 Matter Fused 86 | . 4 . 6 . 12 1 . . . . 4 3 . . 1 5 2 3 1 . . 8 . 1 24 2 9 Heat Flow Errors 45 | . 1 . 3 . 6 2 . . . . 2 . . . . 1 1 2 . . . 4 . 3 13 1 6 Energy Discharges 66 | . 2 1 5 . 5 4 . . . . 6 1 . . 3 1 2 4 . . . 13 . 3 7 2 7 Parts Rejected 8 | . . . 1 . . . . . . . . . . . . 1 . . . . . 2 . . 3 1 . Parts Fused 3 | . . . . . . . . . . . . . . . . . . . . . . 2 . . 1 . . Data Loss (minor) 49 | . 1 . 1 . 2 1 . . . . 4 . . . . 3 3 1 . . . 8 . . 17 2 6 Data Loss (major) 16 | . 1 . . . 2 . . . . . . 1 . . . . 1 1 . . . 3 . . 3 1 3 Misfires 12 | . . 1 1 1 . . . . . . . . . . . . . . . . . 6 . . . 1 2 Alerts 8 | . . . . . . . . . . . . 2 . . . . . . . . . 3 . . 2 . 1 Misdirections 3 | . . . . . . . . . . . . . . . . . . . . . . 1 . . 2 . . Weapon Failures 16 | . 1 . 1 . . . . . . . 1 . . . . . . . . . . 3 . . 8 . 2 Overload Shots . | . . . . . . . . . . . . . . . . . . . . . . . . . . . . Overflow Damage 9199 | . . . 6 30 . 117 154 . . 68 1125 . . 38 13 150 250 126 256 41 79 280 523 940 4348 306 349 Projectiles 7733 | . . . . . . 79 62 . . 3 712 . . 38 13 62 34 48 256 41 23 280 523 939 4051 220 349 Explosions 533 | . . . 6 . . . . . . 65 . . . . . . . 78 . . . . . 1 297 86 . Melee 933 | . . . . 30 . 38 92 . . . 413 . . . . 88 216 . . . 56 . . . . . . Knockbacks 97 | . . . . . . 1 3 . . 1 14 . . . 1 13 . . 7 7 1 9 3 . 29 . 8 Impact . | . . . . . . . . . . . . . . . . . . . . . . . . . . . . Kinetic 90 | . . . . . . 1 3 . . 1 12 . . . 1 12 . . 7 6 1 9 3 . 26 . 8 Secondary 7 | . . . . . . . . . . . 2 . . . . 1 . . . 1 . . . . 3 . . Self-Inflicted Damage 29 | . . . 12 . . . . . . . . . . . . . . . . . . . . . . . 17 Shots 2 | . . . 1 . . . . . . . . . . . . . . . . . . . . . . . 1 Rammed 2 | . . . 1 . . . . . . . . . . . . . . . . . . . . . . 1 . Targets Rammed 2 | . . . 1 . . . . . . . . . . . . . . . . . . . . . . 1 . Kicked . | . . . . . . . . . . . . . . . . . . . . . . . . . . . . Crushed . | . . . . . . . . . . . . . . . . . . . . . . . . . . . . Highest Temperature 763 | . 172 . 218 . 262 240 240 242 . 192 162 47 . . . 164 142 209 . 32 13 192 190 195 763 585 199 Average Temperature 75 | . 38 . 76 . 89 65 90 100 . 60 44 20 . . . 101 79 116 . 17 13 94 50 81 72 206 94 Received Heat Transfer 4014 | . 60 . 531 27 111 126 27 . . 117 . . . . . 27 18 18 12 . . 22 4 12 2087 750 65 Effects 5 | . . . . . . . . . . . . . . . . . . . . . . . . . 2 3 . Shutdowns 2 | . . . . . . . . . . . . . . . . . . . . . . . . . 1 1 . Matter Decay 1 | . . . . . . . . . . . . . . . . . . . . . . . . . . 1 . Damage (minor) 1 | . . . . . . . . . . . . . . . . . . . . . . . . . 1 . . Damage (core) 1 | . . . . . . . . . . . . . . . . . . . . . . . . . . 1 . Siege Activations . | . . . . . . . . . . . . . . . . . . . . . . . . . . . . Martial Activations . | . . . . . . . . . . . . . . . . . . . . . . . . . . . . Shielding Activations . | . . . . . . . . . . . . . . . . . . . . . . . . . . . . Robots Disrupted 1 | . . . . . . . . . . . . . . . . . . . . . . . . . . . 1 Combat Hostiles 1 | . . . . . . . . . . . . . . . . . . . . . . . . . . . 1 Robots Corrupted 5 | . . . 1 . . . . . . . 3 . . . . . . . . . . . . . 1 . . Combat Hostiles 2 | . . . . . . . . . . . 1 . . . . . . . . . . . . . 1 . . Parts Fried 16 | . . . 1 . . . . . . . 12 . . . . . . . . 1 . . . 1 1 . . Impact Corruptions 9 | . . . . . . . 1 . . . 6 . . . . . . . . 1 . . . . 1 . . Robots Melted 13 | . 1 . 3 . . . . . . . . . . . . . . . . . . . . . . 1 8 Combat Hostiles 13 | . 1 . 3 . . . . . . . . . . . . . . . . . . . . . . 1 8 Parts Melted 37 | . 1 . 15 2 8 . . . . . . . . . . . . . . . . . 2 1 . 4 4 Heat Transferred 17782 | . 555 . 5970 888 2220 . . . . . . . . . . . . . . . . . 823 703 2368 1764 2491 Parts Sabotaged . | . . . . . . . . . . . . . . . . . . . . . . . . . . . . Parts Stolen . | . . . . . . . . . . . . . . . . . . . . . . . . . . . . Parts Stripped . | . . . . . . . . . . . . . . . . . . . . . . . . . . . . Power Chain Reactions 4 | . . . 1 . . . . . . . 1 . . . . . . . . . . . . . . . 2 Alert | -11 -10 -10 -8 -8 -8 -6 -6 -6 -6 -5 -5 -5 -5 -5 -4 -4 -4 -4 -4 -3 -3 -3 -2 -2 -2 -1 -1 ------- Run | Yrd Mat Sub Mat Sto Rec Fac Low Low Dat Pro Fac Upp Upp Zhi Pro Fac Upp Upp War Pro Res Qua Res Tes Frg Acc Com Maximum Alert Level 5 | . . . . . . 2 . . . . 1 . . . . 1 . . . . . 2 1 1 5 4 4 Low Security (%) 62 | 100 100 . 100 100 100 54 . . . . 76 . . . . 64 . . . . 100 28 92 62 29 . . Level 1 18 | . . . . . . 44 . . . . 23 . . . . 35 . . . . . 62 7 37 8 . . Level 2 2 | . . . . . . . . . . . . . . . . . . . . . . 9 . . 14 . . Level 3 7 | . . . . . . . . . . . . . . . . . . . . . . . . . 14 . 89 Level 4 6 | . . . . . . . . . . . . . . . . . . . . . . . . . 17 100 10 Level 5 2 | . . . . . . . . . . . . . . . . . . . . . . . . . 15 . . High Security . | . . . . . . . . . . . . . . . . . . . . . . . . . . . . Max Security . | . . . . . . . . . . . . . . . . . . . . . . . . . . . . Peak Influence 2128 | . 120 . 159 83 116 400 . . . . 374 . . . . 266 . . . . 18 433 251 282 2128 1401 1129 Initial 1201 | . . . . 56 . 400 . . . . . . . . . . . . . . 3 . 199 18 156 1201 896 Average 299 | . 34 . 80 36 15 208 . . . . 144 . . . . 123 . . . . 1 248 94 121 785 1201 984 Influence Increases 12158 | . 385 . 680 172 267 984 25 . . 185 941 90 . 5 35 639 40 170 625 300 82 1085 470 648 2925 648 757 Destroy 0b10 Robot/C 6160 | . 260 . 400 80 20 120 20 . . 100 440 80 . . 20 180 40 140 480 160 . 420 300 260 2040 220 380 Destroy 0b10 Robot/NC 485 | . 35 . 90 10 . 25 5 . . . 60 . . 5 . 40 . 5 10 10 30 20 . 15 95 15 15 Destroy Leader 1030 | . 50 . 114 40 . 56 . . . 10 86 10 . . . 44 . 10 . 10 8 136 80 52 258 32 34 Allied During Kill 23 | . . . . . . . . . . . 23 . . . . . . . . . . . . . . . . Successful Hack 330 | . 23 . . 12 18 100 . . . . 37 . . . . 3 . . . . 18 34 . 21 48 . 16 Select Force Hacks 210 | . . . . . 210 . . . . . . . . . . . . . . . . . . . . . . Disable Machine 945 | . . . 45 15 . . . . . . 120 . . . . 120 . . . . . 150 30 120 240 75 30 Destroy Structure 1315 | . 2 . 1 . 19 43 . . . . 160 . . . . 252 . . . . 26 100 30 105 214 171 192 Advance Influence 400 | . . . . . . 400 . . . . . . . . . . . . . . . . . . . . . Partial Spotted 150 | . . . 15 . . 15 . . . . . . . . . . . . . . . 75 . 30 . 15 . Lose Combat Pursuer 1110 | . 15 . 15 15 . 225 . . . 75 15 . . . 15 . . 15 135 120 . 150 30 45 30 120 90 Influence Decreases 11061 | . 351 34 546 306 267 690 319 . . 183 573 460 . 5 35 416 243 164 258 688 87 730 792 402 1201 1250 1061 Entered New Map 2453 | . . 17 . 78 . . 110 . . . 2 137 . . . . 83 4 26 393 2 . 156 15 123 802 505 Time Decay 7648 | . 351 17 506 155 256 690 209 . . 173 521 323 . 5 35 416 160 160 222 295 85 560 626 387 582 368 546 Lost Part 411 | . . . 40 . 11 . . . . 10 10 . . . . . . . 10 . . 20 10 . 210 80 10 Lost Ally 40 | . . . . . . . . . . . 40 . . . . . . . . . . . . . . . . Purge Threat 509 | . . . . 73 . . . . . . . . . . . . . . . . . 150 . . 286 . . Squads Dispatched 91 | . 2 . 2 . . 8 . . . . 12 . . . . 6 . . . . 4 9 2 9 20 5 12 Investigation 7 | . 1 . 1 . . . . . . . 1 . . . . . . . . . 1 1 . . . . 2 Extermination 37 | . . . . . . 6 . . . . 4 . . . . 4 . . . . 2 2 . 4 8 3 4 Reinforcement 29 | . 1 . 1 . . 2 . . . . 7 . . . . 2 . . . . 1 3 2 5 1 1 3 Assault 15 | . . . . . . . . . . . . . . . . . . . . . . . . . 11 1 3 Garrison 3 | . . . . . . . . . . . . . . . . . . . . . . 3 . . . . . Intercept . | . . . . . . . . . . . . . . . . . . . . . . . . . . . . Searches Triggered . | . . . . . . . . . . . . . . . . . . . . . . . . . . . . Data Miner Redirects 7 | . . . . . . . . . . . . . . . . . . . . . . . . . 3 1 3 Construction Impeded 2 | . . . 1 . . . . . . . 1 . . . . . . . . . . . . . . . . Haulers Reinforced 2 | . . . . . . 1 . . . . . . . . . . . . . . 1 . . . . . . Active Scanning Responses . | . . . . . . . . . . . . . . . . . . . . . . . . . . . . Cargo Convoy Interrupts 1 | . . . . . . . . . . . 1 . . . . . . . . . . . . . . . . Stealth | -11 -10 -10 -8 -8 -8 -6 -6 -6 -6 -5 -5 -5 -5 -5 -4 -4 -4 -4 -4 -3 -3 -3 -2 -2 -2 -1 -1 --------- Run | Yrd Mat Sub Mat Sto Rec Fac Low Low Dat Pro Fac Upp Upp Zhi Pro Fac Upp Upp War Pro Res Qua Res Tes Frg Acc Com Distress Signals 57 | . . . 3 . 2 2 . . . . . . . . . 1 . . 1 32 . . 12 1 . . 3 Communications Jammed 98 | . . . . . . . . . . . 29 . . . . 1 . 5 23 2 2 1 . . 26 . 9 Distress Signals 93 | . . . . . . . . . . . 29 . . . . 1 . . 23 2 2 1 . . 26 . 9 Times Spotted 520 | . 21 . 32 4 8 26 1 . . 9 33 4 2 . 2 17 4 8 53 28 3 35 21 18 142 16 33 Peak Tracking Total 20 | . 4 . 5 2 2 4 1 . . 5 6 4 4 . 1 5 2 3 10 5 1 5 4 4 20 7 6 Tactical Retreats 50 | . 1 . 1 1 2 9 . . . 3 1 . . . 1 . . 1 3 7 . 5 2 2 2 4 5 Traps | -11 -10 -10 -8 -8 -8 -6 -6 -6 -6 -5 -5 -5 -5 -5 -4 -4 -4 -4 -4 -3 -3 -3 -2 -2 -2 -1 -1 ------- Run | Yrd Mat Sub Mat Sto Rec Fac Low Low Dat Pro Fac Upp Upp Zhi Pro Fac Upp Upp War Pro Res Qua Res Tes Frg Acc Com Traps Triggered 35 | . 3 . 4 . . 2 . . . . 3 . . . . 2 . . . . 4 2 . 1 12 . 2 Indirectly 3 | . . . 3 . . . . . . . . . . . . . . . . . . . . . . . . Trap Hack Attempts . | . . . . . . . . . . . . . . . . . . . . . . . . . . . . Triggered . | . . . . . . . . . . . . . . . . . . . . . . . . . . . . Disarmed . | . . . . . . . . . . . . . . . . . . . . . . . . . . . . Reprogrammed . | . . . . . . . . . . . . . . . . . . . . . . . . . . . . Reused . | . . . . . . . . . . . . . . . . . . . . . . . . . . . . Traps Extracted . | . . . . . . . . . . . . . . . . . . . . . . . . . . . . Installed . | . . . . . . . . . . . . . . . . . . . . . . . . . . . . Triggered . | . . . . . . . . . . . . . . . . . . . . . . . . . . . . Machines | -11 -10 -10 -8 -8 -8 -6 -6 -6 -6 -5 -5 -5 -5 -5 -4 -4 -4 -4 -4 -3 -3 -3 -2 -2 -2 -1 -1 ---------- Run | Yrd Mat Sub Mat Sto Rec Fac Low Low Dat Pro Fac Upp Upp Zhi Pro Fac Upp Upp War Pro Res Qua Res Tes Frg Acc Com Machines Disabled 71 | . . . 3 1 . . . . . . 8 . . . . 8 . . . 3 . 10 2 9 20 5 2 Max in Single Turn 4 | . . . 1 1 . . . . . . 2 . . . . 4 . . . 1 . 1 1 1 1 1 1 Garrison Access 5 | . . . . . . . . . . . . . . . . . . . . . 1 . 1 1 1 1 . Energy Cycler 1 | . . . . . . . . . . . . . . . . . . . . . . . . . . 1 . Machines Repaired . | . . . . . . . . . . . . . . . . . . . . . . . . . . . . Machines Dismantled . | . . . . . . . . . . . . . . . . . . . . . . . . . . . . Machines Sabotaged . | . . . . . . . . . . . . . . . . . . . . . . . . . . . . Overloaded Fab Kills . | . . . . . . . . . . . . . . . . . . . . . . . . . . . . Hacking | -11 -10 -10 -8 -8 -8 -6 -6 -6 -6 -5 -5 -5 -5 -5 -4 -4 -4 -4 -4 -3 -3 -3 -2 -2 -2 -1 -1 --------- Run | Yrd Mat Sub Mat Sto Rec Fac Low Low Dat Pro Fac Upp Upp Zhi Pro Fac Upp Upp War Pro Res Qua Res Tes Frg Acc Com Machines Accessed 121 | . 7 1 4 3 13 12 . 3 4 . 13 . . 4 . 8 . 1 8 . 9 9 . 7 8 2 5 Terminals 60 | . 6 . 4 2 4 4 . . . . 7 . . . . 3 . . . . 3 8 . 6 7 1 5 Fabricators 8 | . . . . . . 3 . . . . 2 . . . . 2 . . . . 1 . . . . . . Repair Stations 2 | . . . . 1 . 1 . . . . . . . . . . . . . . . . . . . . . Recycling Units 21 | . 1 . . . 8 3 . . . . 4 . . . . 2 . . . . 3 . . . . . . Scanalyzers 2 | . . . . . . . . . . . . . . . . . . . . . 1 1 . . . . . Garrison Access 6 | . . . . . . 1 . . . . . . . . . 1 . . . . 1 . . 1 1 1 . Total Hacks 330 | . 17 3 13 9 36 29 . 6 32 . 31 . . 16 . 24 . 1 26 . 16 26 . 17 18 2 8 Successful 207 | . 11 3 6 5 24 17 . 6 32 . 13 . . 16 . 9 . 1 26 . 6 12 . 7 10 1 2 Failed 122 | . 5 . 7 4 12 12 . . . . 18 . . . . 15 . . . . 10 14 . 10 8 1 6 Catastrophic 26 | . . . 2 . 1 4 . . . . 8 . . . . 2 . . . . . 1 . 2 3 1 2 Database Lockouts 1 | . 1 . . . . . . . . . . . . . . . . . . . . . . . . . . Manual 145 | . 15 . 12 4 23 18 . . . . 20 . . . . 11 . . 1 . 7 13 . 6 12 1 2 Terminals 161 | . 16 . 13 6 14 12 . . . . 19 . . . . 8 . . . . 6 25 . 16 17 1 8 Fabricators 25 | . . . . . . 9 . . . . 8 . . . . 5 . . . . 3 . . . . . . Repair Stations 6 | . . . . 3 . 3 . . . . . . . . . . . . . . . . . . . . . Recycling Units 41 | . 1 . . . 20 4 . . . . 4 . . . . 8 . . . . 4 . . . . . . Scanalyzers 3 | . . . . . . . . . . . . . . . . . . . . . 2 1 . . . . . Garrison Access 8 | . . . . . . 1 . . . . . . . . . 3 . . . . 1 . . 1 1 1 . Terminal Hacks 124 | . 4 3 1 3 3 2 . 6 32 . 2 . . 16 . 1 . 1 26 . . 10 . 5 7 . 2 Record 38 | . . 3 . . . . . 4 11 . . . . 5 . . . . 15 . . . . . . . . Part Schematic 14 | . . . . . . . . . 11 . . . . 3 . . . . . . . . . . . . . Robot Schematic 7 | . . . . . . . . . 7 . . . . . . . . . . . . . . . . . . Robot Analysis 5 | . 1 . . . . . . . . . . . . 4 . . . . . . . . . . . . . Prototype ID Bank 17 | . . . . . . . . . 3 . . . . 4 . . . . 10 . . . . . . . . Open Door 4 | . . . . . . . . 2 . . . . . . . . . 1 1 . . . . . . . . Level Access Points 1 | . . . . . . . . . . . . . . . . . . . . . . . . . 1 . . Branch Access Points 2 | . . . 1 . . . . . . . 1 . . . . . . . . . . . . . . . . Terminal Index 5 | . . . . . 1 1 . . . . 1 . . . . 1 . . . . . . . . 1 . . Alert Level 1 | . . . . . . . . . . . . . . . . . . . . . . 1 . . . . . Unreport Threat 4 | . . . . 1 . . . . . . . . . . . . . . . . . 1 . . 2 . . Locate Traps 10 | . 2 . . 1 . 1 . . . . . . . . . . . . . . . 3 . 2 1 . . Dispatch Records 1 | . . . . . . . . . . . . . . . . . . . . . . 1 . . . . . Recall Extermination 1 | . . . . . . . . . . . . . . . . . . . . . . 1 . . . . . Recall Reinforcements 3 | . . . . . . . . . . . . . . . . . . . . . . 1 . 2 . . . Hauler Manifests 1 | . . . . . . . . . . . . . . . . . . . . . . . . 1 . . . Zone Layout 6 | . 1 . . 1 . . . . . . . . . . . . . . . . . 2 . . 2 . . Disengage Seal 2 | . . . . . . . . . . . . . . . . . . . . . . . . . . . 2 Release Object 2 | . . . . . 2 . . . . . . . . . . . . . . . . . . . . . . Fabricator Hacks 5 | . . . . . . 1 . . . . 2 . . . . 2 . . . . . . . . . . . Network Status 5 | . . . . . . 1 . . . . 2 . . . . 2 . . . . . . . . . . . Repair Station Hacks 4 | . . . . 2 . 2 . . . . . . . . . . . . . . . . . . . . . Scan Component 2 | . . . . 1 . 1 . . . . . . . . . . . . . . . . . . . . . Repair 2 | . . . . 1 . 1 . . . . . . . . . . . . . . . . . . . . . Recycling Unit Hacks 16 | . 1 . . . 8 2 . . . . 3 . . . . 1 . . . . 1 . . . . . . Retrieve Components 16 | . 1 . . . 8 2 . . . . 3 . . . . 1 . . . . 1 . . . . . . Scanalyzer . | . . . . . . . . . . . . . . . . . . . . . . . . . . . . Garrison Access Hacks 4 | . . . . . . . . . . . . . . . . . . . . . 1 . . 1 1 1 . Seal Access 4 | . . . . . . . . . . . . . . . . . . . . . 1 . . 1 1 1 . Unauthorized Hacks 54 | . 6 . 5 . 13 10 . . . . 6 . . . . 5 . . . . 4 2 . 1 2 . . Terminals 35 | . 6 . 5 . 6 5 . . . . 3 . . . . 2 . . . . 3 2 . 1 2 . . Assimilate 2 | . . . . . . 1 . . . . . . . . . . . . . . . 1 . . . . . Botnet 20 | . 1 . 3 . 2 3 . . . . 2 . . . . 2 . . . . 3 1 . 1 2 . . Operators 1 | . . . . . . 1 . . . . . . . . . . . . . . . . . . . . . Skim 12 | . 5 . 2 . 4 . . . . . 1 . . . . . . . . . . . . . . . . Fabricators 12 | . . . . . . 5 . . . . 3 . . . . 3 . . . . 1 . . . . . . Report 1 | . . . . . . 1 . . . . . . . . . . . . . . . . . . . . . Liberate 8 | . . . . . . 3 . . . . 2 . . . . 2 . . . . 1 . . . . . . Haulers 3 | . . . . . . 1 . . . . 1 . . . . 1 . . . . . . . . . . . Repair Stations . | . . . . . . . . . . . . . . . . . . . . . . . . . . . . Recycling Units 7 | . . . . . 7 . . . . . . . . . . . . . . . . . . . . . . Tunnel 7 | . . . . . 7 . . . . . . . . . . . . . . . . . . . . . . Scanalyzers . | . . . . . . . . . . . . . . . . . . . . . . . . . . . . Garrison Access . | . . . . . . . . . . . . . . . . . . . . . . . . . . . . Data Cores Recovered 2 | . . . 1 . . . . . . . . . . . . . . . . . 1 . . . . . . Used 1 | . . . 1 . . . . . . . . . . . . . . . . . . . . . . . . Hacking Detections 81 | . 6 . 3 2 7 11 . . . . 11 . . . . 7 . . . . 8 9 . 6 6 1 4 Full Trace Events 5 | . . . . . 1 . . . . . 1 . . . . . . . . . 1 1 . . . . 1 Feedback Events . | . . . . . . . . . . . . . . . . . . . . . . . . . . . . Feedback Blocked . | . . . . . . . . . . . . . . . . . . . . . . . . . . . . Robot Schematics Acquired 15 | . . . . . . . . . 7 . . . . . . . . . . . . . . 3 5 . . Robots Built . | . . . . . . . . . . . . . . . . . . . . . . . . . . . . Authchips . | . . . . . . . . . . . . . . . . . . . . . . . . . . . . Time . | . . . . . . . . . . . . . . . . . . . . . . . . . . . . Total Robot Build Rating . | . . . . . . . . . . . . . . . . . . . . . . . . . . . . Part Schematics Acquired 37 | . . . . . . . . . 11 . . . . 3 . . . . . . . 1 . 6 16 . . Parts Built . | . . . . . . . . . . . . . . . . . . . . . . . . . . . . Authchips . | . . . . . . . . . . . . . . . . . . . . . . . . . . . . Time . | . . . . . . . . . . . . . . . . . . . . . . . . . . . . Total Part Build Rating . | . . . . . . . . . . . . . . . . . . . . . . . . . . . . Parts Repaired 2 | . . . . 1 . 1 . . . . . . . . . . . . . . . . . . . . . Time 70 | . . . . 51 . 19 . . . . . . . . . . . . . . . . . . . . . Parts Recycled . | . . . . . . . . . . . . . . . . . . . . . . . . . . . . Recycled Matter . | . . . . . . . . . . . . . . . . . . . . . . . . . . . . Retrieved Matter . | . . . . . . . . . . . . . . . . . . . . . . . . . . . . Retrieved Components 59 | . 3 . . . 29 5 . . . . 13 . . . . 6 . . . . 3 . . . . . . Parts Scanalyzed . | . . . . . . . . . . . . . . . . . . . . . . . . . . . . Part Schematics Acquired . | . . . . . . . . . . . . . . . . . . . . . . . . . . . . Parts Damaged . | . . . . . . . . . . . . . . . . . . . . . . . . . . . . Bothacking | -11 -10 -10 -8 -8 -8 -6 -6 -6 -6 -5 -5 -5 -5 -5 -4 -4 -4 -4 -4 -3 -3 -3 -2 -2 -2 -1 -1 ------------ Run | Yrd Mat Sub Mat Sto Rec Fac Low Low Dat Pro Fac Upp Upp Zhi Pro Fac Upp Upp War Pro Res Qua Res Tes Frg Acc Com Used RIF Installer . | . . . . . . . . . . . . . . . . . . . . . . . . . . . . Robots Hacked . | . . . . . . . . . . . . . . . . . . . . . . . . . . . . Non-combat . | . . . . . . . . . . . . . . . . . . . . . . . . . . . . Combat . | . . . . . . . . . . . . . . . . . . . . . . . . . . . . Robot Hacks Applied . | . . . . . . . . . . . . . . . . . . . . . . . . . . . . Relay Couplers Released 6 | . . . . . . . . . . . . . . . . . . . . . . . 1 2 3 . . Machine Destruction 3 | . . . . . . . . . . . . . . . . . . . . . . . 1 2 . . . Programmers 3 | . . . . . . . . . . . . . . . . . . . . . . . . . 3 . . Fabnet Peak Effective % . | . . . . . . . . . . . . . . . . . . . . . . . . . . . . Robots Rewired . | . . . . . . . . . . . . . . . . . . . . . . . . . . . . Allies Hacked . | . . . . . . . . . . . . . . . . . . . . . . . . . . . . Hacks Repelled . | . . . . . . . . . . . . . . . . . . . . . . . . . . . . Allies | -11 -10 -10 -8 -8 -8 -6 -6 -6 -6 -5 -5 -5 -5 -5 -4 -4 -4 -4 -4 -3 -3 -3 -2 -2 -2 -1 -1 -------- Run | Yrd Mat Sub Mat Sto Rec Fac Low Low Dat Pro Fac Upp Upp Zhi Pro Fac Upp Upp War Pro Res Qua Res Tes Frg Acc Com Total Allies 5 | . . . . . . 2 . . . . 3 . . . . . . . . . . . . . . . . Largest Group 3 | . . . . . . 2 . . . . 3 . . . . . . . . . . . . . . . . Highest-Rated Group 87 | . . . . . . 64 . . . . 87 . . . . . . . . . . . . . . . . Highest-Rated Ally 32 | . . . . . . 32 . . . . 29 . . . . . . . . . . . . . . . . Total Orders . | . . . . . . . . . . . . . . . . . . . . . . . . . . . . Ally Attacks 26 | . . . . . . . . . . . 26 . . . . . . . . . . . . . . . . Total Damage 325 | . . . . . . . . . . . 325 . . . . . . . . . . . . . . . . Kills 4 | . . . . . . . . . . . 4 . . . . . . . . . . . . . . . . Allies Corrupted . | . . . . . . . . . . . . . . . . . . . . . . . . . . . . Allies Melted 6 | . . . . . . . . . . . . . . . . . . . 1 . . . 4 . . . 1 Intel | -11 -10 -10 -8 -8 -8 -6 -6 -6 -6 -5 -5 -5 -5 -5 -4 -4 -4 -4 -4 -3 -3 -3 -2 -2 -2 -1 -1 ------- Run | Yrd Mat Sub Mat Sto Rec Fac Low Low Dat Pro Fac Upp Upp Zhi Pro Fac Upp Upp War Pro Res Qua Res Tes Frg Acc Com Active Infowar (turns) 25375 | . . . 1 . . 2664 639 551 78 439 2300 848 170 193 451 1499 446 587 1046 1363 817 2276 2148 1196 3253 843 1567 Optics 21001 | . . . . . . . . . . . 2298 848 170 193 451 1499 446 587 1046 1363 817 2276 2148 1196 3253 843 1567 Sensors 20591 | . . . . . . 2664 639 551 78 439 2129 848 170 190 451 1458 420 562 1046 1363 817 1789 2116 1082 977 773 29 Machine Analysis 1 | . . . 1 . . . . . . . . . . . . . . . . . . . . . . . . Cloaking 2256 | . . . . . . . . . . . . . . . . . . . . . . . . . . 689 1567 Jamming 12898 | . . . . . . . . . . . 948 14 . . . 1467 446 587 1033 928 813 1476 335 6 2928 690 1227 ECM 3 | . . . . . . . . . . . . . . . . . . . . . 2 . . . . . 1 Robot Analysis Total 5 | . 1 . . . . . . . . . . . . 4 . . . . . . . . . . . . . Derelict Logs Recovered 8 | . . 1 . . . . 1 1 . 1 . 2 . . . . 1 1 . . . . . . . . . Drone Launches . | . . . . . . . . . . . . . . . . . . . . . . . . . . . . Drone Recoveries . | . . . . . . . . . . . . . . . . . . . . . . . . . . . . Exploration | -11 -10 -10 -8 -8 -8 -6 -6 -6 -6 -5 -5 -5 -5 -5 -4 -4 -4 -4 -4 -3 -3 -3 -2 -2 -2 -1 -1 ------------- Run | Yrd Mat Sub Mat Sto Rec Fac Low Low Dat Pro Fac Upp Upp Zhi Pro Fac Upp Upp War Pro Res Qua Res Tes Frg Acc Com Turns Passed 31542 | 69 1520 75 1723 377 2206 2784 654 551 78 502 2300 848 170 193 451 1499 446 587 1046 1363 817 2276 2148 1196 3253 843 1567 Spaces Moved 25532 | 37 776 48 754 153 1146 2194 536 552 76 421 1763 597 217 172 305 1148 605 694 1201 1306 1269 2455 1722 1195 2496 797 897 Core 6 | 6 . . . . . . . . . . . . . . . . . . . . . . . . . . . Treads 17873 | 31 653 . 683 153 653 470 . . . . 1073 . . . . . 210 694 1201 1306 1269 2370 1722 1195 2496 797 897 Legs 932 | . . . . . . 890 . . . . . . . . . . . . . . . 42 . . . . . Wheels 1863 | . 123 48 71 . 493 25 . . . . . . . . . 708 395 . . . . . . . . . . Hover 4779 | . . . . . . 780 536 552 76 421 640 597 217 172 305 440 . . . . . 43 . . . . . Flight 79 | . . . . . . 29 . . . . 50 . . . . . . . . . . . . . . . . Fastest Speed 41 | 50 155 155 155 160 104 60 66 66 66 66 62 62 69 69 69 48 48 48 48 48 48 41 66 77 77 77 77 Average Speed 79 | 142 171 155 159 160 172 69 66 66 66 66 75 68 69 69 69 89 48 48 48 48 48 56 98 77 77 77 79 Slowest Speed 320 | 160 240 155 160 160 320 162 66 66 66 66 136 69 69 69 69 185 48 48 48 150 48 150 142 77 77 77 118 Overloaded Moves . | . . . . . . . . . . . . . . . . . . . . . . . . . . . . Propulsion Burnouts . | . . . . . . . . . . . . . . . . . . . . . . . . . . . . Robots Hopped . | . . . . . . . . . . . . . . . . . . . . . . . . . . . . Potential Cave-ins 10 | . . . . . . . . . . . . . . . 7 . . . . . . . . . . 3 . Cave-ins Triggered 1 | . . . . . . . . . . . . . . . 1 . . . . . . . . . . . . Teleports 2 | . . . . . . . . . . . . . . . . . . . . . . . . . 1 1 . Exploration Rate (%) 57 | 3 99 5 54 34 98 48 66 70 68 51 38 70 51 63 46 34 66 81 92 82 35 96 56 93 46 21 36 Regions Visited 27 Branch Regions 19 Pre-discovered Areas 13 | . . 1 . . 7 . . . 1 1 . . . 3 . . . . . . . . . . . . . Known Exits Taken 24 | . . 1 1 1 . 1 1 1 1 1 1 1 1 1 1 1 1 1 1 1 1 1 1 1 1 1 . Unknown Exits Taken 3 | 1 1 . . . 1 . . . . . . . . . . . . . . . . . . . . . . Scrap Searched 24 | . . . . . . . 2 6 . . . 3 1 . 3 . 1 3 . 5 . . . . . . . Spaces Dug 258 | . . . . . 1 27 2 8 . 1 28 16 . . 7 35 30 3 13 1 10 12 . 8 29 21 6 Terrain Destroyed 833 | . . . . . 24 47 5 10 . 35 103 30 . . 21 128 39 6 33 28 15 51 10 33 65 85 65 Melee 114 | . . . . . 1 12 2 3 . . 25 . . . . 15 2 1 2 1 10 9 . 5 26 . . Projectile 452 | . . . . . . 35 3 7 . 6 31 20 . . 21 71 37 5 31 6 5 42 10 7 31 40 44 AOE 267 | . . . . . 23 . . . . 29 47 10 . . . 42 . . . 21 . . . 21 8 45 21 Terrain Rammed . | . . . . . . . . . . . . . . . . . . . . . . . . . . . . Walls Destroyed . | . . . . . . . . . . . . . . . . . . . . . . . . . . . . Machines Disabled . | . . . . . . . . . . . . . . . . . . . . . . . . . . . . Actions | -11 -10 -10 -8 -8 -8 -6 -6 -6 -6 -5 -5 -5 -5 -5 -4 -4 -4 -4 -4 -3 -3 -3 -2 -2 -2 -1 -1 --------- Run | Yrd Mat Sub Mat Sto Rec Fac Low Low Dat Pro Fac Upp Upp Zhi Pro Fac Upp Upp War Pro Res Qua Res Tes Frg Acc Com Total 35178 | 50 899 49 1086 249 1320 3391 819 725 103 625 2600 1026 236 246 539 1556 739 927 1585 1995 1453 3218 2137 1414 3585 949 1657 Wait 7201 | 3 36 2 98 51 114 1026 263 164 28 182 647 415 20 54 217 315 112 204 240 628 112 536 296 122 659 49 608 Move 25503 | 36 775 47 753 152 1145 2193 535 551 75 420 1762 596 216 171 303 1147 604 693 1200 1305 1268 2454 1721 1194 2495 796 896 Hop . | . . . . . . . . . . . . . . . . . . . . . . . . . . . . Pick Up 229 | 2 24 . 29 6 2 23 2 . . . 17 2 . 3 3 8 . . 10 1 17 17 16 5 21 5 16 Fast Attach 206 | 7 3 . 15 5 3 10 . . . . 9 . . 6 2 7 1 3 19 4 6 23 14 7 27 12 23 Attach 58 | . 1 . 7 . 2 4 . . . 1 3 1 . . 1 1 . . . . 3 5 3 . 13 10 3 Detach 19 | 1 1 . 1 . 2 1 . . . . 1 1 . . . . . . . . . 2 1 . 2 4 2 Swap 218 | 1 5 . 26 3 6 22 2 . . 7 22 2 . . 1 13 5 7 . 5 2 30 5 27 25 . 2 Drop 356 | . 16 . 48 10 14 31 2 . . . 30 1 . 8 4 11 1 4 29 4 20 36 28 11 27 . 21 Fire 1175 | . 38 . 107 16 31 56 12 7 . 15 64 8 . 4 7 32 12 15 81 45 5 99 52 34 277 72 86 Melee 202 | . . . 1 6 1 17 3 3 . . 45 . . . . 22 4 1 6 3 20 16 1 14 39 . . Ram . | . . . . . . . . . . . . . . . . . . . . . . . . . . . . Kick . | . . . . . . . . . . . . . . . . . . . . . . . . . . . . Crush 2 | . . . 1 . . . . . . . . . . . . . . . . . . . . . . 1 . Escape Stasis 9 | . . . . . . 8 . . . . . . . . 1 . . . . . . . . . . . . Rewire . | . . . . . . . . . . . . . . . . . . . . . . . . . . . . Trap . | . . . . . . . . . . . . . . . . . . . . . . . . . . . . Miscellaneous . | . . . . . . . . . . . . . . . . . . . . . . . . . . . . Route ------- -11/Scrapyard -10/Materials (discovered 5 exits: *Mat x3 / *Min / *Sub) -10/Subcaves (discovered 2 exits: *Mat / Rec) -8/Materials (discovered 3 exits: Fac / *Sto x2) -8/Storage (discovered 2 exits: Fac / *Rec) -8/Recycling -6/Factory (discovered 2 exits: *Fac / *Low) -6/Lower Caves -6/Lower Caves -6/Data Miner -5/Proximity Caves -5/Factory (discovered 2 exits: *Upp x2) -5/Upper Caves -5/Upper Caves (discovered 2 exits: *Fac / *Zhi) -5/Zhirov -4/Proximity Caves -4/Factory (discovered 2 exits: *Res / *Upp) -4/Upper Caves -4/Upper Caves (discovered 2 exits: *Res / *War) -4/Warlord -3/Proximity Caves -3/Research (discovered 3 exits: *Res / *Qua x2) -3/Quarantine -2/Research (discovered 3 exits: *Acc x2 / *Tes) -2/Testing (discovered 3 exits: *Acc / [*Sec] / *Frg) -2/Protoforge -1/Access -1/Command To Epsilon Eridani History --------- Turn | Location | Event 38 | -11/Scrapyard | Discovered new exit (range 16) 70 | -11/Scrapyard | Entered Materials 338 | -10/Materials | Build established: Mutant 339 | -10/Materials | Central database locked down 428 | -10/Materials | Discovered new exit (range 16) 543 | -10/Materials | Discovered new exit (range 5) 941 | -10/Materials | Discovered new exit (range 13) 1110 | -10/Materials | Identified exit to Materials 1240 | -10/Materials | Identified exit to Mines 1240 | -10/Materials | Learned location of 1 exit from Materials 1287 | -10/Materials | Learned Storage emergency access door positions 1353 | -10/Materials | Learned Storage emergency access door positions 1432 | -10/Materials | Learned location of 1 exit from Storage 1481 | -10/Materials | Learned Recycling recycling unit intel 1540 | -10/Materials | Learned 4 Subcaves zone layouts 1590 | -10/Materials | Entered Subcaves 1591 | -10/Subcaves | Identified exit to Materials 1591 | -10/Subcaves | Identified exit to Recycling 1629 | -10/Subcaves | Learned location of Zion (-7) 1644 | -10/Subcaves | Visited Clippyterm 1649 | -10/Subcaves | Learned Factory emergency access door positions 1665 | -10/Subcaves | Entered Materials 1665 | -8/Materials | Evolved 4 slots: Propulsion x2, Utility x2 1666 | -8/Materials | Identified exit to Factory 1690 | -8/Materials | Build established: Scavenger-Mutant 1868 | -8/Materials | Lost 3 parts (1p1n1u) 2278 | -8/Materials | Discovered new exit (range 16) 2513 | -8/Materials | Discovered new exit (range 11) 3256 | -8/Materials | Identified exit to Storage 3388 | -8/Materials | Entered Storage 3514 | -8/Storage | Repaired Imp. Medium Laser 3758 | -8/Storage | Used back door to open Recycling access 3765 | -8/Storage | Entered Recycling 3766 | -8/Recycling | Loaded intel: 8 recycling unit locations 4598 | -8/Recycling | Discovered new exit (range 15) 4804 | -8/Recycling | Entered Scraplab 4812 | -8/Recycling | Found Prototype Device 4812 | -8/Recycling | Identified Scrap Engine 5114 | -8/Recycling | Build established: Mutant 5857 | -8/Recycling | Build established: Construct 5971 | -8/Recycling | Entered Factory 5971 | -6/Factory | Evolved 4 slots: Propulsion x1, Utility x2, Weapon x1 6754 | -6/Factory | Found Prototype Launcher 6754 | -6/Factory | Identified Scatter Rocket Array 6799 | -6/Factory | Repaired Imp. Light Armor Plating 7976 | -6/Factory | Discovered new exit (range 11) 8260 | -6/Factory | Spotted B-75 Beast 8633 | -6/Factory | Discovered new exit (range 5) 8733 | -6/Factory | Identified exit to Lower Caves 8755 | -6/Factory | Entered Lower Caves 8761 | -6/Lower Caves | Encountered a Warlord checkpoint 9095 | -6/Lower Caves | Identified exit to Lower Caves 9409 | -6/Lower Caves | Entered another Lower Caves area 9423 | -6/Lower Caves | Encountered a Warlord checkpoint 9638 | -6/Lower Caves | Entered an active Warlord outpost 9650 | -6/Lower Caves | Learned Extension terminal intel 9826 | -6/Lower Caves | Discovered new exit (range 5) 9829 | -6/Lower Caves | Identified exit to Data Miner 9960 | -6/Lower Caves | Entered Data Miner 9960 | -6/Data Miner | Discovered new exit (range 6) 9973 | -6/Data Miner | Met Data Miner 9984 | -6/Data Miner | Learned location of Section 7 (-2) 9984 | -6/Data Miner | Acquired the access code to Warlord's prototype stash 9995 | -6/Data Miner | Received God Mode back door access code from Data Miner 10010 | -6/Data Miner | Identified exit to Proximity Caves 10038 | -6/Data Miner | Entered Proximity Caves 10436 | -5/Proximity Caves | Discovered new exit (range 10) 10531 | -5/Proximity Caves | Identified exit to Factory 10540 | -5/Proximity Caves | Entered Factory 10540 | -5/Factory | Evolved 2 slots: Power x1, Utility x1 10874 | -5/Factory | Found Prototype Hackware 10956 | -5/Factory | Lost 3 allies 11871 | -5/Factory | Cargo convoy interrupted 11976 | -5/Factory | Found Prototype Device 11979 | -5/Factory | Identified Exp. Shield Generator 12642 | -5/Factory | Spotted B-75 Beast 12741 | -5/Factory | Discovered new exit (range 19) 12756 | -5/Factory | Identified exit to Upper Caves 12840 | -5/Factory | Entered Upper Caves 13095 | -5/Upper Caves | Learned location of 1 exit from Proximity Caves 13248 | -5/Upper Caves | Learned 4 Factory zone layouts 13583 | -5/Upper Caves | Encountered a Warlord checkpoint 13594 | -5/Upper Caves | Discovered new exit (range 7) 13597 | -5/Upper Caves | Identified exit to Upper Caves 13688 | -5/Upper Caves | Entered another Upper Caves area 13690 | -5/Upper Caves | Discovered new exit (range 9) 13831 | -5/Upper Caves | Discovered new exit (range 9) 13856 | -5/Upper Caves | Identified exit to Zhirov 13858 | -5/Upper Caves | Entered Zhirov 13858 | -5/Zhirov | Discovered new exit (range 3) 13887 | -5/Zhirov | Learned location of Quarantine (-3) 13887 | -5/Zhirov | Learned location of Testing (-2) 13909 | -5/Zhirov | Found Alien Artifact 13909 | -5/Zhirov | Identified Integrated Dissipator 13909 | -5/Zhirov | Installed Integrated Dissipator, increased core heat dissipation (+20) 13923 | -5/Zhirov | Found Alien Artifact 14051 | -5/Zhirov | Identified exit to Proximity Caves 14051 | -5/Zhirov | Entered Proximity Caves 14052 | -4/Proximity Caves | Identified exit to Factory 14179 | -4/Proximity Caves | Crushed by falling debris 14502 | -4/Proximity Caves | Entered Factory 14502 | -4/Factory | Evolved 2 slots: Propulsion x1, Utility x1 14661 | -4/Factory | Identified Exp. Hacking Suite 14707 | -4/Factory | Spotted B-86 Titan 14824 | -4/Factory | Discovered new exit (range 12) 15889 | -4/Factory | Discovered new exit (range 16) 15907 | -4/Factory | Identified exit to Upper Caves 16001 | -4/Factory | Entered Upper Caves 16002 | -4/Upper Caves | Encountered a Warlord checkpoint 16051 | -4/Upper Caves | Spotted B-86 Titan 16157 | -4/Upper Caves | Attracted the attention of an 0b10 outpost 16411 | -4/Upper Caves | Discovered new exit (range 7) 16446 | -4/Upper Caves | Identified exit to Upper Caves 16447 | -4/Upper Caves | Attracted the attention of an 0b10 checkpoint 16447 | -4/Upper Caves | Entered another Upper Caves area 16469 | -4/Upper Caves | Learned Research terminal intel 16516 | -4/Upper Caves | Discovered new exit (range 7) 16723 | -4/Upper Caves | Attracted the attention of an 0b10 checkpoint 16896 | -4/Upper Caves | Discovered new exit (range 20) 16903 | -4/Upper Caves | Identified exit to Warlord 17034 | -4/Upper Caves | Entered Warlord 17050 | -4/Warlord | System corruption cleaned by Quarantine Array 17155 | -4/Warlord | Learned Research emergency access door positions 17155 | -4/Warlord | Learned 4 Armory zone layouts 17156 | -4/Warlord | Learned Factory repair station intel 17156 | -4/Warlord | Learned Factory scanalyzer intel 17156 | -4/Warlord | Learned Factory garrison access intel 17156 | -4/Warlord | Learned Research garrison access intel 17168 | -4/Warlord | Visited the Vortex Lab 17170 | -4/Warlord | Found Prototype Energy Gun 17170 | -4/Warlord | Identified Vortex Shotgun 17173 | -4/Warlord | Found Prototype Energy Cannon 17173 | -4/Warlord | Identified Vortex Driver 17181 | -4/Warlord | Found Vortex Shotgun 17189 | -4/Warlord | Warlord's base attacked by MAIN.C 17189 | -4/Warlord | Found Vortex Shotgun 17306 | -4/Warlord | Met Warlord 17362 | -4/Warlord | Opened Warlord's prototype stash 17370 | -4/Warlord | Found Prototype Processor 17389 | -4/Warlord | Found Prototype Hackware 17391 | -4/Warlord | Found Prototype Processor 17539 | -4/Warlord | Warlord forces counterattacked 17542 | -4/Warlord | Spotted Executioner 17615 | -4/Warlord | Found Prototype Processor 17615 | -4/Warlord | Identified Exp. Core Analyzer (x2) 17621 | -4/Warlord | Lost 5 allies 17622 | -4/Warlord | Spotted Executioner 17639 | -4/Warlord | Destroyed Executioner 17718 | -4/Warlord | Spotted Striker 17789 | -4/Warlord | Lost 22 allies 17795 | -4/Warlord | Spotted Striker 17797 | -4/Warlord | Spotted Striker 17835 | -4/Warlord | Lost 3 allies 17864 | -4/Warlord | Warlord base infiltrated, sounded retreat 17891 | -4/Warlord | Spotted Executioner 17891 | -4/Warlord | Spotted Executioner 17932 | -4/Warlord | Lost 5 allies 17971 | -4/Warlord | Spotted Executioner 18018 | -4/Warlord | Spotted Executioner 18036 | -4/Warlord | Discovered new exit (range 19) 18053 | -4/Warlord | Identified exit to Proximity Caves 18063 | -4/Warlord | Lost 3 allies 18080 | -4/Warlord | Entered Proximity Caves 18251 | -3/Proximity Caves | Found Alien Artifact 18251 | -3/Proximity Caves | Identified Core Expander 18251 | -3/Proximity Caves | Installed Core Expander, added new Weapon slot 18861 | -3/Proximity Caves | Discovered new exit (range 20) 18910 | -3/Proximity Caves | Identified exit to Research 19364 | -3/Proximity Caves | Lost 3 allies 19402 | -3/Proximity Caves | Found Prototype Launcher 19402 | -3/Proximity Caves | Identified Rocket Array 19443 | -3/Proximity Caves | Entered Research 19443 | -3/Research | Evolved 2 slots: Utility x2 19444 | -3/Research | Identified exit to Quarantine 19446 | -3/Research | Loaded intel: 23 terminal locations 19447 | -3/Research | Loaded intel: 4 garrison access locations 19663 | -3/Research | Found Fusion Bomb Launcher 20022 | -3/Research | Identified Exp. Targeting Computer 20062 | -3/Research | Spotted B-86 Titan 20063 | -3/Research | Discovered new exit (range 18) 20086 | -3/Research | Identified Ghost Barrier 20155 | -3/Research | Found Prototype Launcher 20183 | -3/Research | Identified Hellfire Missile Launcher 20186 | -3/Research | Found Hellfire Missile Launcher 20260 | -3/Research | Entered Quarantine 20358 | -3/Quarantine | Found Prototype Hackware 20379 | -3/Quarantine | Identified Exp. System Shield 20494 | -3/Quarantine | Scanned by Researcher 20751 | -3/Quarantine | Found Alien Artifact 20765 | -3/Quarantine | Discovered new exit (range 17) 20790 | -3/Quarantine | Cryocooling Duct disabled 20805 | -3/Quarantine | Ambient heat levels rising (+20) 20805 | -3/Quarantine | Non-combat units ordered to evacuate 20878 | -3/Quarantine | System corruption reached 10% 20879 | -3/Quarantine | Garrison activated, responded to threat 20932 | -3/Quarantine | Found Prototype Device 20932 | -3/Quarantine | Identified Exp. Shock Absorption System 21268 | -3/Quarantine | Build established: Assassin 21375 | -3/Quarantine | Cryocooling Duct disabled 21390 | -3/Quarantine | Ambient heat levels rising (+20) 21390 | -3/Quarantine | Combat units ordered to evacuate 21490 | -3/Quarantine | Quarantine Guard activated 21553 | -3/Quarantine | Spotted Quarantine Guard 21561 | -3/Quarantine | Spotted Quarantine Guard 21581 | -3/Quarantine | Spotted Quarantine Guard 21592 | -3/Quarantine | Destroyed Quarantine Guard 21635 | -3/Quarantine | Build established: Construct 21643 | -3/Quarantine | Spotted Quarantine Guard 21651 | -3/Quarantine | Destroyed Quarantine Guard 21654 | -3/Quarantine | Spotted Quarantine Guard 21672 | -3/Quarantine | Destroyed Quarantine Guard 21703 | -3/Quarantine | Spotted Quarantine Guard 21754 | -3/Quarantine | Spotted Quarantine Guard 21765 | -3/Quarantine | Spotted Quarantine Guard 21842 | -3/Quarantine | Destroyed Quarantine Guard 21908 | -3/Quarantine | Destroyed Quarantine Guard 22005 | -3/Quarantine | Spotted Quarantine Guard 22025 | -3/Quarantine | Destroyed Quarantine Guard 22090 | -3/Quarantine | Destroyed Quarantine Guard 22249 | -3/Quarantine | Spotted Quarantine Guard 22264 | -3/Quarantine | Destroyed Quarantine Guard 22286 | -3/Quarantine | Identified exit to Research 22287 | -3/Quarantine | Spotted Quarantine Guard 22489 | -3/Quarantine | Spotted Quarantine Guard 22526 | -3/Quarantine | Found Alien Artifact 22536 | -3/Quarantine | Entered Research 22536 | -2/Research | Warlord forces began assault on 0b10 22536 | -2/Research | Evolved 2 slots: Utility x2 22646 | -2/Research | Research machine network offline 22796 | -2/Research | Spotted B-90 Cyclops 22838 | -2/Research | Destroyed B-90 Cyclops 22935 | -2/Research | Met up with Warlord 22938 | -2/Research | Met DD-05H 22958 | -2/Research | Borebot progress halted 22968 | -2/Research | Found Prototype Device 22968 | -2/Research | Identified Adv. Kinecellerator 23174 | -2/Research | Borebot progress halted 23175 | -2/Research | Found Prototype Launcher 23187 | -2/Research | Identified Ragnarok Missile Launcher 23278 | -2/Research | Lost 6 allies 23294 | -2/Research | Spotted B-90 Cyclops 23376 | -2/Research | Borebot progress halted 23473 | -2/Research | Spotted Striker 23526 | -2/Research | Spotted Striker 23527 | -2/Research | Found Prototype Processor 23527 | -2/Research | Identified Exp. Melee Analysis Suite 23529 | -2/Research | Spotted Executioner 23534 | -2/Research | Destroyed Executioner 23580 | -2/Research | Lost 3 allies 23709 | -2/Research | Spotted Striker 23718 | -2/Research | Destroyed Striker 23735 | -2/Research | Lost 3 allies 23752 | -2/Research | Warlord invited to help at Command 23752 | -2/Research | Given Cave Seal Controls access code 23764 | -2/Research | Discovered new exit (range 13) 23787 | -2/Research | Spotted Striker 23790 | -2/Research | Spotted Striker 23807 | -2/Research | Destroyed Striker 23811 | -2/Research | Destroyed Striker 23837 | -2/Research | Identified exit to Access 23849 | -2/Research | Spotted Striker 23909 | -2/Research | Lost 6 allies 23950 | -2/Research | Spotted Executioner 23950 | -2/Research | Spotted Striker 24276 | -2/Research | Found Prototype Launcher 24293 | -2/Research | Identified Enh. Gamma Bomb Array 24378 | -2/Research | Discovered new exit (range 23) 24403 | -2/Research | Identified exit to Testing 24462 | -2/Research | Discovered exit to Access (range 5) 24549 | -2/Research | Spotted B-90 Cyclops 24597 | -2/Research | Spotted Striker 24684 | -2/Research | Entered Testing 24724 | -2/Testing | Spotted PH-40A2LY5B9S 24763 | -2/Testing | Destroyed PH-40A2LY5B9S 24903 | -2/Testing | Spotted Striker 24907 | -2/Testing | Spotted Striker 24984 | -2/Testing | Found Prototype Device 24996 | -2/Testing | Identified Exp. Hardlight Generator 25283 | -2/Testing | Discovered exit to Access (range 15) 25596 | -2/Testing | Found Prototype Energy Gun 25596 | -2/Testing | Identified Warp Gun 25814 | -2/Testing | Spotted Fortress 25871 | -2/Testing | Discovered new exit (range 6) 25871 | -2/Testing | Discovered new exit (range 5) 25874 | -2/Testing | Identified exit to Protoforge 25880 | -2/Testing | Entered Protoforge 26297 | -2/Protoforge | Spotted B-90 Cyclops 26439 | -2/Protoforge | Spotted Hotshot 26439 | -2/Protoforge | Spotted Hotshot 26440 | -2/Protoforge | Spotted Hotshot 26440 | -2/Protoforge | Spotted Hotshot 26470 | -2/Protoforge | Destroyed Hotshot 26482 | -2/Protoforge | Destroyed Hotshot 26494 | -2/Protoforge | Destroyed Hotshot 26513 | -2/Protoforge | Destroyed Hotshot 26560 | -2/Protoforge | Superfortress began startup sequence 26561 | -2/Protoforge | Destroyed 8 combat bots 26753 | -2/Protoforge | Identified Dimensional Node Initializer 26753 | -2/Protoforge | Initialized slip node 27057 | -2/Protoforge | Identified Transdimensional Reconstructor 27057 | -2/Protoforge | Forge Plexus network access discovered 27066 | -2/Protoforge | Spotted Decapitator 27067 | -2/Protoforge | Spotted Decapitator 27068 | -2/Protoforge | Spotted Decapitator 27071 | -2/Protoforge | Spotted Decapitator 27071 | -2/Protoforge | Destroyed Decapitator 27072 | -2/Protoforge | Destroyed Decapitator 27074 | -2/Protoforge | Destroyed Decapitator 27097 | -2/Protoforge | Destroyed Decapitator 27130 | -2/Protoforge | First assault squad dispatched 27142 | -2/Protoforge | Found Exp. System Purifier 27149 | -2/Protoforge | Incoming assault squad redirected 27397 | -2/Protoforge | Found Crosscalibrator 27400 | -2/Protoforge | Spotted Immortal 27400 | -2/Protoforge | Spotted Immortal 27407 | -2/Protoforge | Incoming assault squad redirected 27407 | -2/Protoforge | Spotted Decapitator 27407 | -2/Protoforge | Spotted Decapitator 27407 | -2/Protoforge | Spotted Decapitator 27407 | -2/Protoforge | Spotted Decapitator 27414 | -2/Protoforge | Destroyed Decapitator 27417 | -2/Protoforge | Destroyed Decapitator 27420 | -2/Protoforge | Destroyed Decapitator 27425 | -2/Protoforge | Destroyed Decapitator 27463 | -2/Protoforge | Spotted V956-h 27470 | -2/Protoforge | Destroyed V956-h 27477 | -2/Protoforge | Found Cep. NT7 Matterbank 27479 | -2/Protoforge | Found Cep. Antigrav Storage Unit 27481 | -2/Protoforge | Found Cep. Matter Streamer 27483 | -2/Protoforge | Found Cep. Chromion Battery 27485 | -2/Protoforge | Found Cep. Chromion Battery 27498 | -2/Protoforge | Found Cep. NT7 Matterbank 27506 | -2/Protoforge | Found Imp. Powered Armor 27543 | -2/Protoforge | Spotted V744-p 27570 | -2/Protoforge | Destroyed Immortal 27575 | -2/Protoforge | Found Cep. Antimissile System 27601 | -2/Protoforge | Destroyed V744-p 27662 | -2/Protoforge | System corruption reached 10% 27680 | -2/Protoforge | Destroyed Immortal 27700 | -2/Protoforge | Found Cep. Weapon Articulator 27707 | -2/Protoforge | Found Cep. Weapon Articulator 27815 | -2/Protoforge | Spotted V451-p 27816 | -2/Protoforge | Spotted V632-v 27834 | -2/Protoforge | Destroyed V451-p 27840 | -2/Protoforge | Destroyed V632-v 27846 | -2/Protoforge | Found Cep. Zero-point Core 27904 | -2/Protoforge | Incoming assault squad redirected 27959 | -2/Protoforge | Spotted Decapitator 27965 | -2/Protoforge | Spotted Decapitator 27965 | -2/Protoforge | Spotted V247-v 27965 | -2/Protoforge | Spotted V236-z 27966 | -2/Protoforge | Spotted Decapitator 27997 | -2/Protoforge | Found Cep. Reaction Jets 28118 | -2/Protoforge | Spotted Decapitator 28118 | -2/Protoforge | Spotted Decapitator 28118 | -2/Protoforge | Spotted Decapitator 28203 | -2/Protoforge | Spotted AP7-3 28203 | -2/Protoforge | Spotted AP7-3 28218 | -2/Protoforge | Destroyed AP7-3 28227 | -2/Protoforge | Destroyed AP7-3 28277 | -2/Protoforge | Found Faulty Cep. Core Analysis Suite 28285 | -2/Protoforge | Found Cep. Cloak Mesh 28366 | -2/Protoforge | Additional patrols dispatched to research labs 28384 | -2/Protoforge | Found Cep. Nanofilaments [Tensile] 28384 | -2/Protoforge | Installed Cep. Nanofilaments [Tensile], 3 resistances modified: KI +20%, TH -10%, I +20% 28396 | -2/Protoforge | Found Transdimensional Reconstructor 28644 | -2/Protoforge | Destroyed 8 combat bots 28657 | -2/Protoforge | Found Cep. XC Strikerail 28803 | -2/Protoforge | Destroyed 18 combat bots 28912 | -2/Protoforge | Found Cep. Plasma Driver 29046 | -2/Protoforge | Spotted Striker 29052 | -2/Protoforge | Spotted Executioner 29054 | -2/Protoforge | System corruption reached 30% 29055 | -2/Protoforge | Spotted Striker 29066 | -2/Protoforge | Destroyed Striker 29067 | -2/Protoforge | Spotted Striker 29074 | -2/Protoforge | Destroyed Decapitator 29092 | -2/Protoforge | Core integrity fell below 50% 29096 | -2/Protoforge | Spotted Decapitator 29111 | -2/Protoforge | Spotted Striker 29112 | -2/Protoforge | Warped through subspace to slip node 29113 | -2/Protoforge | Core integrity fell below 20% 29117 | -2/Protoforge | Spotted Hotshot 29122 | -2/Protoforge | Spotted Hotshot 29133 | -2/Protoforge | Entered Access 29133 | -1/Access | Evolved 2 slots: Utility x2 29142 | -1/Access | Lost 17 parts (2p1n9u5w) 29194 | -1/Access | Lost 3 allies 29369 | -1/Access | Energy Cycler disabled 29502 | -1/Access | Spotted B-99 Colossus 29587 | -1/Access | Build established: Scavenger-Skirmisher 29633 | -1/Access | First assault squad dispatched 29651 | -1/Access | Incoming assault squad redirected 29657 | -1/Access | Warped through subspace 29686 | -1/Access | Lost 5 parts (1n2u2w) 29970 | -1/Access | Discovered new exit (range 8) 29975 | -1/Access | Identified exit to Command 29976 | -1/Access | Entered Command 30032 | -1/Command | Incoming investigation squad redirected 30085 | -1/Command | Disengaged cave seal 30085 | -1/Command | Derelicts emerged from the dark tunnel 30085 | -1/Command | Welcomed Warlord to Command 30308 | -1/Command | Lost 3 allies 30398 | -1/Command | Build established: Infiltrator-Mutant 30555 | -1/Command | Spotted Alpha 7 30555 | -1/Command | Spotted Executioner 30573 | -1/Command | Destroyed Alpha 7 30584 | -1/Command | Spotted B-99 Colossus 30659 | -1/Command | Disengaged cave seal 30659 | -1/Command | Derelicts emerged from the dark tunnel 30666 | -1/Command | Spotted Executioner 30666 | -1/Command | Spotted Striker 30666 | -1/Command | Spotted Alpha 7 30671 | -1/Command | Spotted Striker 30671 | -1/Command | Spotted Executioner 30675 | -1/Command | Destroyed Executioner 30683 | -1/Command | Spotted B-99 Colossus 30687 | -1/Command | Destroyed Executioner 30701 | -1/Command | Build established: Infiltrator-Tank 30708 | -1/Command | Destroyed B-99 Colossus 30715 | -1/Command | Destroyed B-99 Colossus 30724 | -1/Command | Found Prototype Device 30724 | -1/Command | Identified Exp. ECM Suite 30729 | -1/Command | Lost 16 allies 30730 | -1/Command | Discovered new exit (range 17) 31205 | -1/Command | Found Quantum Capacitor 31226 | -1/Command | First assault squad dispatched 31244 | -1/Command | Spotted M Guard 31245 | -1/Command | Spotted M Guard 31252 | -1/Command | Spotted Combat Programmer 31252 | -1/Command | Spotted Combat Programmer 31256 | -1/Command | Destroyed Combat Programmer 31258 | -1/Command | Warlord commented on Warlord statues 31262 | -1/Command | Destroyed Combat Programmer 31299 | -1/Command | Destroyed M Guard 31299 | -1/Command | All MAIN.C guards destroyed 31309 | -1/Command | Lost 3 allies 31310 | -1/Command | Found Prototype Reactor 31317 | -1/Command | Found Prototype Reactor 31372 | -1/Command | Incoming assault squad redirected 31506 | -1/Command | Incoming assault squad redirected 31508 | -1/Command | Build established: Tank 31543 | *** | Escaped! Last Messages --------------- 31374_ Blast Slug penetrates G-73 Enforcer. 31374_ G-73 Enforcer knocked back. 31377_ System corrupted: Cep. Plasma Driver failed to cycle. 31378_ Plasma Slug penetrates G-73 Enforcer. 31379_ G-73 Enforcer destroyed. 31379_ G-73 Enforcer knocked back. 31383_ K-01 Serf collects debris. 31386_ G2EML9MTK/0BADG1SDBTYOL#5YGI%1GUAONEKH 31387_ K-01 Serf collects debris. 31396_ R-10 Processor collects Flexi-carbon Leg. 31410_ System corrupted: Energy discharge (-145). 31411_ K-01 Serf cleans the Repair Station. 31427_ YK267XFM VL<:TWINV4Q:BUG/6|N#8L6TZFEWN 31451_ System corrupted: Substantial component data lost. 31476_ ALERT: Unidentified disturbance in Zone 9Z, multiple assault carriers dispatched. 31489_ System corrupted: Matter fused (-5). 31505_ System corrupted: Energy discharge (-155). 31506_ ALERT: Higher priority target reported, redirecting assault. 31543_ System corrupted: Heat flow error (+100). Map ----- +----------------------------------------------------+ | #????### # " #?# #??????????? | | ###??????# = = % ! #?# #????####### | | ?????????# # #?# #???? | | ?????????# [ #|! ###%###? | | ?????????# " "" "" # # #? ] | | ?????????# # = ""T"" !# # # | | ?????????# ! """ " + + ? | | ?????????# ##"########" ??? " %% " "" "" ? | | ?????????# ###########"####### % # ""R""?? | | ???####### =[%[" """??? | | ???# %*[#????????? | | ???# ==]##??????## | | ???# =%"#######"# | | ???# =% %!%=% | | ?###+#####"#### ########################"####*%% | | ?# #?##???# #??????????????????????###??#=%!! | | ?# #??????# #???????????????????????????#!==** | | ?# !#??????# #??????????????????????????##!==! | | ?# ########+##?##############??????????#"=== | | ?# # #?# #??#######?## | | ?# !# #?# #### # #!##?# | | ?# ] # "" #?# ^^^^^^^^ # # # [*/!#?# | | ?# = # """"#?# ^ ^^^^^!^!/ ### | | ?# """"### ^ ^^^^^^^^^!+!/ | | ?# " "" ##; ^ "" ^^^^^!=^=+! | | ?# + ### ^ @" ^^^*^^^=^ +!/! | | ?# "## ^ W ^ ^ !^^ ;= = | | ?###+ # "" ### ^ ^^^^^^^^^^**!;;""" | | ?# ## """"#?# ^^^^ ^^^ # # # # *#; ; [ | | ?# ## """"#?# #############!% | | ?# " ## "" #?# #???????????# ! | | ?# ## #?###########;##???????????#![ " | | ?## ### #?????????#####???????????##*%[ | | ??# ## ##???????## ##????????###[==] | | ??# #?# #?????### ##########""%!#### | | ??# #?### + ####?????# ! [ | | ??# #### ########## ##"#+###"""""###### | | ??# # * ! # # "####?????? | | ??# # ! # "# ! ##????????? | | ??# # ] = "# #?????????? | | ??# # ## "" #?????????? | | ??# # # !! ## """" #?????????? | | ??# # # # * *= # ## """" #????????#? | | ??# # % !|[! ## "" #?????? +? | | ??# # [* = ! #???? #? | | ??# ##### " "| # ## #?? #? | | ?? ????## # ! # ######### #? | | ?? T"??? # + = + #? | | ?? ""??? # # ############# #? | | ?? ????#### # # #?????????????? #? | +----------------------------------------------------+ Best States ------------- Heat Dissipation 110 Coolant Potential 220 Energy Generation 72 Energy Capacity 1245 Matter Stores 300 Matter Capacity 300 Sight Range 23 Robot Scan Range 16 Terrain Scan Density 10 Jamming Range 16 Cloak Strength 6 Armor Coverage 675 Resistance: KI 40 Resistance: I 20 Point Defense Rating 480 Weapon Cycling 30 Phase Shifting 15 Evasion (%) 61 Targeting Accuracy 30 Core Analysis 8 Recoil Reduction 6 Energy Filtering 30 Offensive Hacking 16 Item Schematics ----------------- Combat Drone Bay | -6/Data Miner | Free Lgt. Regenerative Plating | -6/Data Miner | Free Cld. Gravmag System | -6/Data Miner | Free Prc. Matter Filter | -6/Data Miner | Free Neutron Cannon | -6/Data Miner | Free Impulse Thruster | -6/Data Miner | Free Adv. Actuator Array | -6/Data Miner | Free Railgun | -6/Data Miner | Free Mic. Fission Core | -6/Data Miner | Free Imp. Force Field | -6/Data Miner | Free Com. HERF Cannon | -6/Data Miner | Free Assault Drone Bay | -5/Zhirov | Free Exp. Heat Sink | -5/Zhirov | Free Exp. Optical Array | -5/Zhirov | Free Com. Mass Driver | -3/Quarantine | Archive Hds. Centrium Wheel | -2/Testing | Archive Imp. Matter Neutralizer | -2/Testing | Archive Graviton Cannon | -2/Testing | Archive Ragnarok Missile Launcher | -2/Testing | Archive Imp. KE Penetrator | -2/Testing | Archive Adv. Myomer Leg | -2/Testing | Archive Impact Mace | -2/Protoforge | Archive Com. Particle Reactor | -2/Protoforge | Archive Gravity Neutralizer | -2/Protoforge | Archive Exp. Core Analyzer | -2/Protoforge | Archive Exp. Gyrokinetic Inverter | -2/Protoforge | Archive Hvy. Neutron Cannon | -2/Protoforge | Archive Adv. Kinecellerator | -2/Protoforge | Archive Femtoactuators | -2/Protoforge | Archive Cld. Field Propulsion Drive | -2/Protoforge | Archive Shock Maul | -2/Protoforge | Archive Imp. Energy Well | -2/Protoforge | Archive Exp. Targeting Computer | -2/Protoforge | Archive Exp. Matter Compressor | -2/Protoforge | Archive Enh. Armored Medium Treads | -2/Protoforge | Archive Centrium Heavy Treads | -2/Protoforge | Archive Cld. Antimatter Reactor | -2/Protoforge | Archive Robot Schematics ------------------ Y-54 Guardian | -6/Data Miner | Free B-60 Warrior | -6/Data Miner | Free L-41 Fighter | -6/Data Miner | Free G-50 Soldier | -6/Data Miner | Free A-15 Conveyor | -6/Data Miner | Free L-61 Swordsman | -6/Data Miner | Free O-32 Director | -6/Data Miner | Free C-55 Analyst | -2/Testing | Archive R-10 Processor | -2/Testing | Archive G-67 Veteran | -2/Testing | Archive S-43 Plague | -2/Protoforge | Archive K-01 Serf | -2/Protoforge | Archive D-83 Annihilator | -2/Protoforge | Archive A-27 Freighter | -2/Protoforge | Archive T-07 Excavator | -2/Protoforge | Archive Fabricated ------------ Nothing Repaired ---------- Imp. Medium Laser | 7% | -8/Storage Imp. Light Armor Plating | 35% | -6/Factory Alien Tech Used ----------------- Integrated Dissipator Core Expander Dimensional Node Initializer Concept Nanofilaments [Tensile] Transdimensional Reconstructor Achievements -------------- None Challenges ------------ None Game ------ Seed ScrapMetafieldStrikerail Manual? 0 Play Time 04:51:31 Cumulative 1523.0 hours Start 2025.05.29 @ 16:03:02 End 2025.05.30 @ 00:40:54 Sessions 5 Manual Loads 0 Difficulty Rogue Special Mode None Game No. 1084 Rogue 1044 Adventurer 40 Explorer 0 Win Type 0 Total 194 Types 83/9/74/2/1/4/16/2/1/2 Lore% 96 Gallery% 97 Achievement% 87 Wizard Run 0 Options --------- Layout 0 ASCII 0 Keyboard 0 Movement Numpad Keybinds 0 Fullscreen 0 Font 20/Terminus Map View 76x50 Zoom Use 0% Tactical HUD 1 Map Filters NONE Filters NONE Steam 1 RUN: c273803e-4eca-481f-8b77-10e7d9ad3a44